{"text_format":"1","workbook":"xlsx","n_sheets":25,"sheets":["入力のルール","目次","入力シート","BELS連絡票","委任状","評価申請書1面","2面","2-別 (申)","2-別 (主)","2-別(設)","3面","4面","4-別（情報）","設内1面","設内2面","MAST","掲承1面","掲承2面","変更評価申請書1面","軽微な変更","軽微な変更-別（参考書式）","取下げ届","再交付","再2面","Sheet1"],"not_rendered":{"charts":0,"images":4,"macros":1,"external_links":0,"defined_names":35,"comments":0,"pivot_tables":0},"unopened":[],"bounds":{"document_bytes":16777216,"sheet_cells":100000,"rows_first":2000,"rows_last":500,"rows_between":2000,"halvings":0,"cell_chars":16384,"cell_head_chars":4096},"cells_cut":0,"cells_raw":0,"read":"whole","date_system":"1900"}

{"sheet":"入力のルール","index":0,"n_rows":67,"n_cols":28,"rows_kept":67,"cut":false,"hidden":false,"merged":[[46,2,46,6],[45,2,45,6],[44,2,44,6],[43,2,43,6],[42,2,42,6],[1,1,2,9],[41,2,41,6],[40,2,40,6],[36,2,36,6],[37,2,37,6],[38,2,38,6],[39,2,39,6],[30,4,30,17]]}
[]
[null,"入力のルール"]
[]
[]
[]
[]
[]
[null,null,"黄色セルに入力"]
[]
[null,null,"水色セルは選択ボタンから入力"]
[]
[null,null,"ピンク色セルの□を左クリックすると、☑が表示され、もう一度左クリックすると"]
[null,null,"□に戻ります。"]
[]
[null,null,"緑色部分は自動的に反映されます。"]
[]
[null,null,"2024年4月1日以降　入力は不要です。"]
[]
[null,"・","[目次]シートの項目をクリックすると、各シートにリンクされます。"]
[]
[null,"・","各シートの、　　　のボタンをクリックすると、[目次]シートに戻ります。"]
[]
[]
[null,"①","　　　　　　　　に必要事項を入力してください。"]
[]
[null,null,"その他は、上記に従い入力してください。"]
[]
[null,"②","提出時は、下タブ　　　　　　　　を印刷し、正副2部提出してください。"]
[]
[null,null,"※ZEHの場合のみ、（一財）住宅性能評価・表示協会ＨＰの"]
[null,null,null,null,"「ZEH一次エネルギー消費量計算シート」",null,null,null,null,null,null,null,null,null,null,null,null,null,"に入力し上記必要書類と"]
[null,null,"併せて提出願います。"]
[]
[]
[]
[null,null,"更新履歴"]
[null,null,"2018-04-01",null,null,null,null,"Ver.1.0　開始"]
[null,null,"2019-09-01",null,null,null,null,"Ver.1.1　計算シートの仕様変更に伴う改訂"]
[null,null,"2019-11-18",null,null,null,null,"Ver.1.2　法改正に伴う改訂"]
[null,null,"2020-05-12",null,null,null,null,"Ver.1.3　申請ファイルからの計算シートの除外"]
[null,null,"2020-06-19",null,null,null,null,"Ver.1.31　BELS連絡票の年号記号変更"]
[null,null,"2020-07-15",null,null,null,null,"Ver.1.4　 BELS評価業務方法書変更に伴う改訂"]
[null,null,"2021-01-01",null,null,null,null,"Ver.1.5 　法改正（押印省略）に伴う改訂"]
[null,null,"2021-06-25",null,null,null,null,"Ver.1.51 センター理事長変更に伴う改訂"]
[null,null,"2022-10-01",null,null,null,null,"Ver.1.60 法改正に伴う様式変更"]
[null,null,"2023-10-01",null,null,null,null,"Ver.1.70 法改正に伴う様式変更"]
[null,null,"2024-04-01",null,null,null,null,"Ver.2.00 法改正に伴う様式変更"]
[]
[]
[]
[]
[]
[]
[]
[]
[]
[]
[]
[]
[]
[]
[]
[]
["事前相談、随時受付中!!"]
["     お気軽にご相談ください。"]
[]
[null,null,null,null,null,null,null,null,null,null,null,null,null,null,null,null,null,null,null,null,null,null,null,null,null,null,null,"一般財団法人 岩手県建築住宅センター　TEL019-623-4420　BELS専用アドレス　bels@ikjc.or.jp"]

{"sheet":"目次","index":1,"n_rows":108,"n_cols":52,"rows_kept":108,"cut":false,"hidden":false,"merged":[[43,7,44,10],[43,32,44,35],[46,9,47,19],[46,34,47,44],[49,5,50,16],[49,30,50,41],[52,7,53,10],[55,7,56,10],[65,20,66,32],[62,5,63,24],[58,30,61,44],[25,48,61,50],[21,34,22,44],[23,34,24,44],[65,5,66,19],[52,32,53,35],[34,9,35,19],[34,34,35,44],[37,9,38,19],[37,34,38,44],[40,7,41,10],[40,32,41,35],[25,7,26,10],[25,32,26,35],[28,9,29,19],[28,34,29,44],[31,9,32,19],[12,5,13,16],[12,30,13,41],[15,5,16,16],[15,30,16,41],[18,7,19,10],[18,32,19,35],[1,0,2,6],[1,8,2,51],[9,5,10,16],[9,30,10,41],[5,2,7,8],[5,27,7,33],[28,21,38,27],[104,5,105,27],[55,32,56,35],[58,5,61,19],[104,28,105,40],[31,34,32,44],[90,5,91,27],[93,7,94,10],[96,7,97,10],[75,2,77,8],[86,2,88,8],[100,2,102,8],[68,7,69,10],[71,7,72,10],[79,5,80,27],[82,7,83,17]]}
[]
["シートの構成",null,null,null,null,null,null,null,"※下線をクリックすると、それぞれのシートに跳びます。各シートの　　　　　をクリックすると目次に戻ります。"]
[]
[]
[]
[null,null,"01申請",null,null,null,null,null,null,null,null,null,null,null,null,null,null,null,null,null,null,null,null,null,null,null,null,"02変更申請"]
[]
[]
[]
[null,null,null,null,null,"BELS評価連絡票",null,null,null,null,null,null,null,null,null,null,null,null,null,null,null,null,null,null,null,null,null,null,null,null,"BELS評価（変更）連絡票"]
[]
[]
[null,null,null,null,null,"委任状",null,null,null,null,null,null,null,null,null,null,null,null,null,null,null,null,null,null,null,null,null,null,null,null,"※委任状の添付不要"]
[]
[]
[null,null,null,null,null,"BELSに係る評価申請書",null,null,null,null,null,null,null,null,null,null,null,"（別記様式第26号）",null,null,null,null,null,null,null,null,null,null,null,null,"BELSに係る変更評価申請書",null,null,null,null,null,null,null,null,null,null,null,"（別記様式第29号）"]
[]
[]
[null,null,null,null,null,null,null,"第一面",null,null,null,null,null,null,null,null,null,null,null,null,null,null,null,null,null,null,null,null,null,null,null,null,"第一面"]
[]
[]
[null,null,null,null,null,null,null,null,null,null,null,null,null,null,null,null,null,null,null,null,null,null,null,null,null,null,null,null,null,null,null,null,null,null,"第一面別紙：変更の概要"]
[]
[null,null,null,null,null,null,null,null,null,null,null,null,null,null,null,null,null,null,null,null,null,null,null,null,null,null,null,null,null,null,null,null,null,null,"※参考様式"]
[]
[null,null,null,null,null,null,null,"第二面",null,null,null,null,null,null,null,null,null,null,null,null,null,null,null,null,null,null,null,null,null,null,null,null,"第二面",null,null,null,null,null,null,null,null,null,null,null,null,null,null,null,"第二面以降は、当初の申請書の様式を利用して作成されても構いません。"]
[]
[]
[null,null,null,null,null,null,"　　",null,null,"第二面別紙：申請者",null,null,null,null,null,null,null,null,null,null,null,"第二面別紙は、それぞれが２又は３名以上の場合に記入してください。",null,null,null,null,null,null,null,null,null,"　　",null,null,"第二面別紙：申請者"]
[]
[]
[null,null,null,null,null,null,null,null,null,"第二面別紙：建築主",null,null,null,null,null,null,null,null,null,null,null,null,null,null,null,null,null,null,null,null,null,null,null,null,"第二面別紙：建築主"]
[]
[]
[null,null,null,null,null,null,null,null,null,"第二面別紙：設計者等",null,null,null,null,null,null,null,null,null,null,null,null,null,null,null,null,null,null,null,null,null,null,null,null,"第二面別紙：設計者等"]
[]
[]
[null,null,null,null,null,null,null,null,null,"第二面別紙：工事施工者",null,null,null,null,null,null,null,null,null,null,null,null,null,null,null,null,null,null,null,null,null,null,null,null,"第二面別紙：工事施工者"]
[]
[]
[null,null,null,null,null,null,null,"第三面",null,null,null,null,null,null,null,null,null,null,null,null,null,null,null,null,null,null,null,null,null,null,null,null,"第三面"]
[]
[]
[null,null,null,null,null,null,null,"第四面",null,null,null,null,null,null,null,null,null,null,null,null,null,null,null,null,null,null,null,null,null,null,null,null,"第四面"]
[]
[]
[null,null,null,null,null,null,null,null,null,"第四面別紙：参考情報",null,null,null,null,null,null,null,null,null,null,null,null,null,null,null,null,null,null,null,null,null,null,null,null,"第四面別紙：参考情報"]
[]
[]
[null,null,null,null,null,"設計内容（現況）説明書",null,null,null,null,null,null,null,null,null,null,null,"（別記参考様式第1）",null,null,null,null,null,null,null,null,null,null,null,null,"設計内容（現況）説明書"]
[]
[]
[null,null,null,null,null,null,null,"第一面",null,null,null,null,null,null,null,null,null,null,null,null,null,null,null,null,null,null,null,null,null,null,null,null,"第一面"]
[]
[]
[null,null,null,null,null,null,null,"第二面",null,null,null,null,null,null,null,null,null,null,null,null,null,null,null,null,null,null,null,null,null,null,null,null,"第二面"]
[]
[]
[null,null,null,null,null,"ZEH一次エネルギー消費量計算シート",null,null,null,null,null,null,null,null,null,null,null,null,null,null,null,null,null,null,null,null,null,null,null,null,"住宅の｢ZEH｣に関する表示についての一次ｴﾈﾙｷﾞｰ計算書"]
[]
[]
[]
[null,null,null,null,null,"※センターホームページのリンクからダウンロードしてください。",null,null,null,null,null,null,null,null,null,null,null,null,null,null,null,null,null,null,null,null,null,null,null,null,"※別エクセルで様式準備しています。"]
[]
[]
[null,null,null,null,null,"BELSに係る評価物件掲載承諾書",null,null,null,null,null,null,null,null,null,null,null,null,null,null,"（別記参考様式第27号）"]
[]
[]
[null,null,null,null,null,null,null,"第一面"]
[]
[]
[null,null,null,null,null,null,null,"第二面"]
[]
[]
[]
[null,null,"03軽微な変更"]
[]
[]
[]
[null,null,null,null,null,"BELSに係る評価軽微な変更に係る報告書"]
[]
[]
[null,null,null,null,null,null,null,"別紙：変更の概要"]
[]
[]
[]
[null,null,"04再交付"]
[]
[]
[]
[null,null,null,null,null,"BELSに係る評価再交付申請書"]
[]
[]
[null,null,null,null,null,null,null,"第一面"]
[]
[]
[null,null,null,null,null,null,null,"第二面"]
[]
[]
[]
[null,null,"05取下げ"]
[]
[]
[]
[null,null,null,null,null,"取下げ届",null,null,null,null,null,null,null,null,null,null,null,null,null,null,null,null,null,null,null,null,null,null,"（別記参考様式第30号）"]
[]
[]
[null,null,null,null,null,null,null,null,null,null,null,null,null,null,null,null,null,null,null,null,null,null,null,null,null,null,null,null,null,null,null,null,null,null,null,null,null,null,null,null,null,null,null,null,null,null,null,null,null,null,null,"一般財団法人 岩手県建築住宅センター　TEL019-623-4420　BELS専用アドレス　bels@ikjc.or.jp"]

{"sheet":"入力シート","index":2,"n_rows":54,"n_cols":53,"rows_kept":54,"cut":false,"hidden":false,"merged":[[0,0,1,27],[33,0,33,6],[34,0,34,6],[31,7,31,27],[33,7,33,27],[34,7,34,27],[32,0,32,6],[32,8,32,27],[31,0,31,6],[22,18,22,20],[22,9,22,11],[22,13,22,17],[24,0,25,6],[24,9,24,12],[24,13,24,17],[24,18,24,21],[25,7,25,27],[28,0,28,6],[27,7,27,27],[28,7,28,27],[23,7,23,27],[23,0,23,6],[27,0,27,6],[24,7,24,8],[24,22,24,26],[17,0,17,6],[17,7,17,27],[18,0,18,6],[11,7,11,27],[12,7,12,27],[18,7,18,27],[3,0,3,6],[3,7,3,27],[4,7,4,27],[5,7,6,27],[9,0,9,6],[9,7,9,27],[49,15,49,18],[49,19,49,20],[49,21,49,26],[5,0,6,6],[4,0,4,6],[10,0,10,6],[11,0,11,6],[12,0,12,6],[38,21,38,26],[22,0,22,6],[22,7,22,8],[22,21,22,26],[15,0,15,6],[15,7,15,27],[16,0,16,6],[16,8,16,27],[44,0,44,6],[44,7,44,27],[39,0,39,6],[39,7,39,27],[40,0,41,6],[40,7,40,8],[40,9,40,12],[40,13,40,17],[40,18,40,21],[40,22,40,26],[41,7,41,27],[10,8,10,27],[26,0,26,6],[26,8,26,27],[52,0,52,6],[53,0,53,6],[52,7,52,27],[53,7,53,27],[51,8,51,27],[48,0,48,6],[48,7,48,27],[50,7,50,27],[51,0,51,6],[49,7,49,14],[49,0,50,6],[43,0,43,6],[43,7,43,27],[38,7,38,8],[38,9,38,11],[38,13,38,17],[38,18,38,20],[42,0,42,6],[42,8,42,27],[38,0,38,6]]}
["入力シート",null,null,null,null,null,null,null,null,null,null,null,null,null,null,null,null,null,null,null,null,null,null,null,null,null,null,null,null,null,null,null,null,null,null,null,null,null,null,null,null,null,null,null,null,null,null,null,null,null,null,null,"登録先"]
[]
["〇建築物の概要",null,null,null,null,null,null,null,null,null,null,null,null,null,null,null,null,null,null,null,null,null,null,null,null,null,null,null,null,null,null,null,null,null,null,null,null,null,null,null,null,null,null,null,null,null,null,null,null,null,null,null,"国土交通大臣"]
["建築物の名称",null,null,null,null,null,null,null,null,null,null,null,null,null,null,null,null,null,null,null,null,null,null,null,null,null,null,null,null,null,null,null,null,null,null,null,null,null,null,null,null,null,null,null,null,null,null,null,null,null,null,null,"建設大臣"]
["建築主名",null,null,null,null,null,null,null,null,null,null,null,null,null,null,null,null,null,null,null,null,null,null,null,null,null,null,null,null,null,null,null,null,null,null,null,null,null,null,null,null,null,null,null,null,null,null,null,null,null,null,null,"大臣"]
["建築場所\n（建築物の所在地）"]
[null,null,null,null,null,null,null,null,null,null,null,null,null,null,null,null,null,null,null,null,null,null,null,null,null,null,null,null,null,null,null,null,null,null,null,null,null,null,null,null,null,null,null,null,null,null,null,null,null,null,"岩手県",null,{"$f":"AY7&\"知事\"","v":"岩手県知事"}]
[null,null,null,null,null,null,null,null,null,null,null,null,null,null,null,null,null,null,null,null,null,null,null,null,null,null,null,null,null,null,null,null,null,null,null,null,null,null,null,null,null,null,null,null,null,null,null,null,null,null,"北海道",null,"北海道知事"]
["〇申請者1",null,null,null,null,null,null,null,null,null,null,null,null,null,null,null,null,null,null,null,null,null,null,null,null,null,null,null,null,null,null,null,null,null,null,null,null,null,null,null,null,null,null,null,null,null,null,null,null,null,"青森県",null,"青森県知事"]
["申請者名",null,null,null,null,null,null,null,null,null,null,null,null,null,null,null,null,null,null,null,null,null,null,null,null,null,null,null,null,null,null,null,null,null,null,null,null,null,null,null,null,null,null,null,null,null,null,null,null,null,"宮城県",null,"宮城県知事"]
["郵便番号",null,null,null,null,null,null,"〒","　",null,null,null,null,null,null,null,null,null,null,null,null,null,null,null,null,null,null,null,null,null,null,null,null,null,null,null,null,null,null,null,null,null,null,null,null,null,null,null,null,null,"秋田県",null,"秋田県知事"]
["住所",null,null,null,null,null,null,null,null,null,null,null,null,null,null,null,null,null,null,null,null,null,null,null,null,null,null,null,null,null,null,null,null,null,null,null,null,null,null,null,null,null,null,null,null,null,null,null,null,null,"山形県",null,"山形県知事"]
["電話番号",null,null,null,null,null,null,"　",null,null,null,null,null,null,null,null,null,null,null,null,null,null,null,null,null,null,null,null,null,null,null,null,null,null,null,null,null,null,null,null,null,null,null,null,null,null,null,null,null,null,"福島県",null,"福島県知事"]
[null,null,null,null,null,null,null,null,null,null,null,null,null,null,null,null,null,null,null,null,null,null,null,null,null,null,null,null,null,null,null,null,null,null,null,null,null,null,null,null,null,null,null,null,null,null,null,null,null,null,"茨城県",null,"茨城県知事"]
["〇申請者2",null,null,null,null,null,null,null,null,null,null,null,null,null,null,null,null,null,null,null,null,null,null,null,null,null,null,null,null,null,null,null,null,null,null,null,null,null,null,null,null,null,null,null,null,null,null,null,null,null,"栃木県",null,"栃木県知事"]
["申請者名",null,null,null,null,null,null,null,null,null,null,null,null,null,null,null,null,null,null,null,null,null,null,null,null,null,null,null,null,null,null,null,null,null,null,null,null,null,null,null,null,null,null,null,null,null,null,null,null,null,"群馬県",null,"群馬県知事"]
["郵便番号",null,null,null,null,null,null,"〒","　",null,null,null,null,null,null,null,null,null,null,null,null,null,null,null,null,null,null,null,null,null,null,null,null,null,null,null,null,null,null,null,null,null,null,null,null,null,null,null,null,null,"埼玉県",null,"埼玉県知事"]
["住所",null,null,null,null,null,null,null,null,null,null,null,null,null,null,null,null,null,null,null,null,null,null,null,null,null,null,null,null,null,null,null,null,null,null,null,null,null,null,null,null,null,null,null,null,null,null,null,null,null,"千葉県",null,"千葉県知事"]
["電話番号",null,null,null,null,null,null,"　",null,null,null,null,null,null,null,null,null,null,null,null,null,null,null,null,null,null,null,null,null,null,null,null,null,null,null,null,null,null,null,null,null,null,null,null,null,null,null,null,null,null,"東京都",null,"東京都知事"]
[null,null,null,null,null,null,null,null,null,null,null,null,null,null,null,null,null,null,null,null,null,null,null,null,null,null,null,null,null,null,null,null,null,null,null,null,null,null,null,null,null,null,null,null,null,null,null,null,null,null,"神奈川県",null,"神奈川県知事"]
[null,null,null,null,null,null,null,null,null,null,null,null,null,null,null,null,null,null,null,null,null,null,null,null,null,null,null,null,null,null,null,null,null,null,null,null,null,null,null,null,null,null,null,null,null,null,null,null,null,null,"新潟県",null,"新潟県知事"]
["〇代理人（代理者）",null,null,null,null,null,null,null,null,null,null,null,null,null,null,null,null,null,null,null,null,null,null,null,null,null,null,null,null,null,null,null,null,null,null,null,null,null,null,null,null,null,null,null,null,null,null,null,null,null,"富山県",null,"富山県知事"]
["資格",null,null,null,null,null,null,null,null,"建築士",null,null,null,null,null,null,null,null,"登録第",null,null,null,null,null,null,null,null,"号",null,null,null,null,null,null,null,null,null,null,null,null,null,null,null,null,null,null,null,null,null,null,"石川県",null,"石川県知事"]
["氏名",null,null,null,null,null,null,null,null,null,null,null,null,null,null,null,null,null,null,null,null,null,null,null,null,null,null,null,null,null,null,null,null,null,null,null,null,null,null,null,null,null,null,null,null,null,null,null,null,null,"福井県",null,"福井県知事"]
["名称\n（建築士事務所名）",null,null,null,null,null,null,null,null,"建築士事務所",null,null,null,null,null,null,null,null,"知事登録第",null,null,null,null,null,null,null,null,"号",null,null,null,null,null,null,null,null,null,null,null,null,null,null,null,null,null,null,null,null,null,null,"山梨県",null,"山梨県知事"]
[null,null,null,null,null,null,null,null,null,null,null,null,null,null,null,null,null,null,null,null,null,null,null,null,null,null,null,null,null,null,null,null,null,null,null,null,null,null,null,null,null,null,null,null,null,null,null,null,null,null,"長野県",null,"長野県知事"]
["郵便番号",null,null,null,null,null,null,"〒",null,null,null,null,null,null,null,null,null,null,null,null,null,null,null,null,null,null,null,null,null,null,null,null,null,null,null,null,null,null,null,null,null,null,null,null,null,null,null,null,null,null,"岐阜県",null,"岐阜県知事"]
["住所",null,null,null,null,null,null,null,null,null,null,null,null,null,null,null,null,null,null,null,null,null,null,null,null,null,null,null,null,null,null,null,null,null,null,null,null,null,null,null,null,null,null,null,null,null,null,null,null,null,"静岡県",null,"静岡県知事"]
["電話番号",null,null,null,null,null,null,"　",null,null,null,null,null,null,null,null,null,null,null,null,null,null,null,null,null,null,null,null,null,null,null,null,null,null,null,null,null,null,null,null,null,null,null,null,null,null,null,null,null,null,"愛知県",null,"愛知県知事"]
[null,null,null,null,null,null,null,null,null,null,null,null,null,null,null,null,null,null,null,null,null,null,null,null,null,null,null,null,null,null,null,null,null,null,null,null,null,null,null,null,null,null,null,null,null,null,null,null,null,null,"三重県",null,"三重県知事"]
["〇建築主等",null,null,null,null,null,null,null,null,null,null,null,null,null,null,null,null,null,null,null,null,null,null,null,null,null,null,null,null,null,null,null,null,null,null,null,null,null,null,null,null,null,null,null,null,null,null,null,null,null,"滋賀県",null,"滋賀県知事"]
["名称",null,null,null,null,null,null,null,null,null,null,null,null,null,null,null,null,null,null,null,null,null,null,null,null,null,null,null,null,null,null,null,null,null,null,null,null,null,null,null,null,null,null,null,null,null,null,null,null,null,"京都府",null,"京都府知事"]
["郵便番号",null,null,null,null,null,null,"〒","　",null,null,null,null,null,null,null,null,null,null,null,null,null,null,null,null,null,null,null,null,null,null,null,null,null,null,null,null,null,null,null,null,null,null,null,null,null,null,null,null,null,"大阪府",null,"大阪府知事"]
["住所",null,null,null,null,null,null,null,null,null,null,null,null,null,null,null,null,null,null,null,null,null,null,null,null,null,null,null,null,null,null,null,null,null,null,null,null,null,null,null,null,null,null,null,null,null,null,null,null,null,"兵庫県",null,"兵庫県知事"]
["電話番号",null,null,null,null,null,null,"　",null,null,null,null,null,null,null,null,null,null,null,null,null,null,null,null,null,null,null,null,null,null,null,null,null,null,null,null,null,null,null,null,null,null,null,null,null,null,null,null,null,null,"奈良県",null,"奈良県知事"]
[null,null,null,null,null,null,null,null,null,null,null,null,null,null,null,null,null,null,null,null,null,null,null,null,null,null,null,null,null,null,null,null,null,null,null,null,null,null,null,null,null,null,null,null,null,null,null,null,null,null,"和歌山県",null,"和歌山県知事"]
[null,null,null,null,null,null,null,null,null,null,null,null,null,null,null,null,null,null,null,null,null,null,null,null,null,null,null,null,null,null,null,null,null,null,null,null,null,null,null,null,null,null,null,null,null,null,null,null,null,null,"鳥取県",null,"鳥取県知事"]
["〇設計者等",null,null,null,null,null,null,null,null,null,null,null,null,null,null,null,null,null,null,null,null,null,null,null,null,null,null,null,null,null,null,null,null,null,null,null,null,null,null,null,null,null,null,null,null,null,null,null,null,null,"島根県",null,"島根県知事"]
["資格",null,null,null,null,null,null,"　",null,"建築士",null,null,null,"国土交通大臣",null,null,null,null,"登録第",null,null,null,null,null,null,null,null,"号",null,null,null,null,null,null,null,null,null,null,null,null,null,null,null,null,null,null,null,null,null,null,"岡山県",null,"岡山県知事"]
["氏名",null,null,null,null,null,null,null,null,null,null,null,null,null,null,null,null,null,null,null,null,null,null,null,null,null,null,null,null,null,null,null,null,null,null,null,null,null,null,null,null,null,null,null,null,null,null,null,null,null,"広島県",null,"広島県知事"]
["名称\n（建築士事務所名）",null,null,null,null,null,null,null,null,"建築士事務所",null,null,null,null,null,null,null,null,"知事登録第",null,null,null,null,null,null,null,null,"号",null,null,null,null,null,null,null,null,null,null,null,null,null,null,null,null,null,null,null,null,null,null,"山口県",null,"山口県知事"]
[null,null,null,null,null,null,null,null,null,null,null,null,null,null,null,null,null,null,null,null,null,null,null,null,null,null,null,null,null,null,null,null,null,null,null,null,null,null,null,null,null,null,null,null,null,null,null,null,null,null,"徳島県",null,"徳島県知事"]
["郵便番号",null,null,null,null,null,null,"〒","　",null,null,null,null,null,null,null,null,null,null,null,null,null,null,null,null,null,null,null,null,null,null,null,null,null,null,null,null,null,null,null,null,null,null,null,null,null,null,null,null,null,"香川県",null,"香川県知事"]
["住所",null,null,null,null,null,null,null,null,null,null,null,null,null,null,null,null,null,null,null,null,null,null,null,null,null,null,null,null,null,null,null,null,null,null,null,null,null,null,null,null,null,null,null,null,null,null,null,null,null,"愛媛県",null,"愛媛県知事"]
["電話番号",null,null,null,null,null,null,"　",null,null,null,null,null,null,null,null,null,null,null,null,null,null,null,null,null,null,null,null,null,null,null,null,null,null,null,null,null,null,null,null,null,null,null,null,null,null,null,null,null,null,"高知県",null,"高知県知事"]
[null,null,null,null,null,null,null,null,null,null,null,null,null,null,null,null,null,null,null,null,null,null,null,null,null,null,null,null,null,null,null,null,null,null,null,null,null,null,null,null,null,null,null,null,null,null,null,null,null,null,"福岡県",null,"福岡県知事"]
[null,null,null,null,null,null,null,null,null,null,null,null,null,null,null,null,null,null,null,null,null,null,null,null,null,null,null,null,null,null,null,null,null,null,null,null,null,null,null,null,null,null,null,null,null,null,null,null,null,null,"佐賀県",null,"佐賀県知事"]
["〇工事施工者",null,null,null,null,null,null,null,null,null,null,null,null,null,null,null,null,null,null,null,null,null,null,null,null,null,null,null,null,null,null,null,null,null,null,null,null,null,null,null,null,null,null,null,null,null,null,null,null,null,"長崎県",null,{"$f":"AY48&\"知事\"","v":"長崎県知事"}]
["氏名又は名称",null,null,null,null,null,null,"　",null,null,null,null,null,null,null,null,null,null,null,null,null,null,null,null,null,null,null,null,null,null,null,null,null,null,null,null,null,null,null,null,null,null,null,null,null,null,null,null,null,null,"熊本県",null,"熊本県知事"]
["営業所名",null,null,null,null,null,null,"建設業の許可（",null,null,null,null,null,null,null,"岩手県知事",null,null,null,"）第",null," ",null,null,null,null,null,"号",null,null,null,null,null,null,null,null,null,null,null,null,null,null,null,null,null,null,null,null,null,null,"大分県",null,"大分県知事"]
[null,null,null,null,null,null,null,"　",null,null,null,null,null,null,null,null,null,null,null,null,null,null,null,null,null,null,null,null,null,null,null,null,null,null,null,null,null,null,null,null,null,null,null,null,null,null,null,null,null,null,"宮崎県",null,"宮崎県知事"]
["郵便番号",null,null,null,null,null,null,"〒","　",null,null,null,null,null,null,null,null,null,null,null,null,null,null,null,null,null,null,null,null,null,null,null,null,null,null,null,null,null,null,null,null,null,null,null,null,null,null,null,null,null,"鹿児島県",null,"鹿児島県知事"]
["住所",null,null,null,null,null,null,"　",null,null,null,null,null,null,null,null,null,null,null,null,null,null,null,null,null,null,null,null,null,null,null,null,null,null,null,null,null,null,null,null,null,null,null,null,null,null,null,null,null,null,"沖縄県",null,"沖縄県知事"]
["電話番号",null,null,null,null,null,null,"　"]

{"sheet":"BELS連絡票","index":3,"n_rows":81,"n_cols":43,"rows_kept":81,"cut":false,"hidden":false,"merged":[[2,22,4,27],[0,22,0,27],[1,22,1,27],[1,0,2,4],[9,0,10,27],[11,0,11,27],[12,4,12,27],[5,0,6,0],[5,15,7,15],[13,4,13,27],[5,22,7,27],[14,4,14,27],[15,4,15,9],[15,16,15,27],[16,4,16,9],[16,16,16,21],[19,0,19,27],[20,2,20,24],[20,26,20,27],[21,0,22,0],[28,17,42,17],[23,0,42,0],[65,0,65,27],[68,0,68,5],[68,6,68,7],[68,8,68,19],[68,20,68,25],[68,26,68,27],[74,26,74,27],[69,6,69,7],[69,8,71,8],[69,12,71,12],[69,26,69,27],[70,6,70,7],[70,26,70,27],[71,6,71,7],[71,26,71,27],[72,6,72,7],[72,26,72,27],[73,6,73,7],[73,26,73,27],[74,6,74,7],[78,6,78,7],[78,26,78,27],[79,26,79,27],[80,26,80,27],[75,6,75,7],[75,26,75,27],[76,6,76,7],[76,26,76,27],[77,6,77,7],[77,26,77,27],[61,4,61,9],[61,16,61,21],[55,0,56,27],[59,4,59,24],[59,25,59,27],[57,4,57,27],[58,4,58,27],[60,4,60,9],[60,16,60,27]]}
["（一財）岩手県建築住宅センター",null,null,null,null,null,null,null,null,null,null,null,null,null,null,null,null,null,null,null,null,null,20240401,null,null,null,null,null,null,null,null,null,null,null,null,null,null,null,null,null,null,"月","日"]
["事前協議",null,null,null,null,"事前協議番号：",null,null,null,null,null,null,null,null,null,null,null,null,null,null,null,null,"交付希望日"]
[null,null,null,null,null,"受付日：　　　　　年　　　月　　　日　　担当者：",null,null,null,null,null,null,null,null,null,null,null,null,null,null,null,null,null,null,null,null,null,null,null,null,null,null,null,null,null,null,null,null,null,null,null,1,1]
["連絡日：　　　　　　年　　　月　　　日　⇒　訂正日：　　　　　　年　　　月　　　日",null,null,null,null,null,null,null,null,null,null,null,null,null,null,null,null,null,null,null,null,null,null,null,null,null,null,null,null,null,null,null,null,null,null,null,null,null,null,null,null,2,2]
["連絡日：　　　　　　年　　　月　　　日　⇒　訂正日：　　　　　　年　　　月　　　日",null,null,null,null,null,null,null,null,null,null,null,null,null,null,null,null,null,null,null,null,null,null,null,null,null,null,null,null,null,null,null,null,null,null,null,null,null,null,null,null,3,3]
["C","□","確認併願申請",null,null,null,"2P","確認番号：R　　－1－　　　　－　　",null,null,null,null,null,null,null,"複数棟","□","同時に2戸以上",null,null,null,null,null,null,null,null,null,null,null,null,null,null,null,null,null,null,null,null,null,null,null,4,4]
[null,null,null,null,null,null,null,null,null,null,null,null,null,null,null,null,"□","外皮仕様同一",null,null,null,null,null,null,null,null,null,null,null,null,null,null,null,null,null,null,null,null,null,null,null,5,5]
[null,"□","設計評価同時申請",null,null,null,null,"評価番号：R　　－9－",null,null,null,null,null,null,null,null,"□","設備仕様同一",null,null,null,null,null,null,null,null,null,null,null,null,null,null,null,null,null,null,null,null,null,null,null,6,6]
["※上記欄は当センターで記載しますので、ご記入不要です。",null,null,null,null,null,null,null,null,null,null,null,null,null,null,null,null,null,null,null,null,null,null,null,null,null,null,null,null,null,null,null,null,null,null,null,null,null,null,null,null,7,7]
["BELS評価 連絡票",null,null,null,null,null,null,null,null,null,null,null,null,null,null,null,null,null,null,null,null,null,null,null,null,null,null,null,null,null,null,null,null,null,null,null,null,null,null,null,null,8,8]
[null,null,null,null,null,null,null,null,null,null,null,null,null,null,null,null,null,null,null,null,null,null,null,null,null,null,null,null,null,null,null,null,null,null,null,null,null,null,null,null,null,9,9]
["●連絡先の必要事項を記入してください●",null,null,null,null,null,null,null,null,null,null,null,null,null,null,null,null,null,null,null,null,null,null,null,null,null,null,null,null,null,null,null,null,null,null,null,null,null,null,null,null,10,10]
["［建築場所］",null,null,null,{"$f":"IF(入力シート!H6=\"\",\"\",入力シート!H6)","v":""},null,null,null,null,null,null,null,null,null,null,null,null,null,null,null,null,null,null,null,null,null,null,null,null,null,null,null,null,null,null,null,null,null,null,null,null,11,11]
["［申請者名］",null,null,null,{"$f":"IF(入力シート!H10=\"\",\"\",入力シート!H10)","v":""},null,null,null,null,null,null,null,null,null,null,null,null,null,null,null,null,null,null,null,null,null,null,null,null,null,null,null,null,null,null,null,null,null,null,null,null,12,12]
["［会 社 名］",null,null,null,null,null,null,null,null,null,null,null,null,null,null,null,null,null,null,null,null,null,null,null,null,null,null,null,null,null,null,null,null,null,null,null,null,null,null,null,null,null,13]
["［担当者名］",null,null,null,null,null,null,null,null,null,"［E-mailアドレス］",null,null,null,null,null,null,null,null,null,null,null,null,null,null,null,null,null,null,null,null,null,null,null,null,null,null,null,null,null,null,null,14]
["［電話番号］",null,null,null,null,null,null,null,null,null,"［　FAX　番号　］",null,null,null,null,null,null,null,null,null,null,null,null,null,null,null,null,null,null,null,null,null,null,null,null,null,null,null,null,null,null,null,15]
["［確認申請の申請先］",null,null,null,null,null,null,null,null,"岩手県建築住宅センター",null,null,null,null,null,null,null,"その他の確認検査機関"]
[null,null,null,null,null,null,null,null,null,null,null,null,null,null,null,null,null,null,null,null,null,null,null,null,null,null,null,null,null,null,null,null,null,null,null,null,null,null,null,null,null,null,16]
["●設計者チェック欄に、提出した書類を ”☑” でチェックしてください●",null,null,null,null,null,null,null,null,null,null,null,null,null,null,null,null,null,null,null,null,null,null,null,null,null,null,null,null,null,null,null,null,null,null,null,null,null,null,null,null,null,17]
["部数",null,"必要な書類及び図書名　",null,null,null,null,null,null,null,null,null,null,null,null,null,null,null,null,null,null,null,null,null,null,null,"センター",null,null,null,null,null,null,null,null,null,null,null,null,null,null,null,18]
["1部",null,"BELS事前協議連絡票",null,null,null,null,null,null,null,null,null,null,null,null,null,null,null,null,null,null,null,null,null,null,null,"□",null,null,null,null,null,null,null,null,null,null,null,null,null,null,null,19]
[null,null,"委任状",null,null,null,null,null,null,null,null,null,null,"※代理人の場合",null,null,null,null,null,null,null,null,null,null,null,null,"□",null,null,null,null,null,null,null,null,null,null,null,null,null,null,null,20]
["2部",null,"BELSに係る評価申請書（別記様式第7号）",null,null,null,null,null,null,null,null,null,null,"※1～4面",null,null,null,null,null,null,null,null,null,null,null,null,"□",null,null,null,null,null,null,null,null,null,null,null,null,null,null,null,21]
[null,null,"BELSに係る評価物件 掲載承諾書",null,null,null,null,null,null,null,null,null,null,"※1～2面",null,null,null,null,null,null,null,null,null,null,null,null,"□",null,null,null,null,null,null,null,null,null,null,null,null,null,null,null,22]
[null,null,"設計内容（現況）説明書",null,null,null,null,null,null,null,null,null,null,"※1～2面",null,null,null,null,null,null,null,null,null,null,null,null,"□",null,null,null,null,null,null,null,null,null,null,null,null,null,null,null,23]
[null,null,"「ZEH」、「ｾﾞﾛｴﾈ相当」の一次ｴﾈﾙｷﾞｰ計算書",null,null,null,null,null,null,null,null,null,null,"※希望する場合",null,null,null,null,null,null,null,null,null,null,null,null,"□",null,null,null,null,null,null,null,null,null,null,null,null,null,null,null,24]
[null,null,null,null,null,null,null,null,null,null,null,null,null,null,null,null,null,null,null,null,null,null,null,null,null,null,null,null,null,null,null,null,null,null,null,null,null,null,null,null,null,null,25]
[null,null,"一次ｴﾈﾙｷﾞｰ消費量計算結果（住宅）",null,null,null,null,null,null,null,null,null,null,null,null,null,null,"評価書等の写し",null,null,null,null,null,null,null,null,"□",null,null,null,null,null,null,null,null,null,null,null,null,null,null,null,26]
[null,null,"性能の証明となる各種資料",null,null,null,null,null,null,null,null,null,null,null,null,null,null,null,null,"住宅性能評価",null,null,null,null,null,null,"□","□",null,null,null,null,null,null,null,null,null,null,null,null,null,null,27]
[null,null,"外皮計算書",null,null,null,null,null,null,null,null,null,null,null,null,null,null,null,null,"長期優良",null,null,null,null,null,null,"□","□",null,null,null,null,null,null,null,null,null,null,null,null,null,null,28]
[null,null,"付近見取り図",null,null,null,null,null,null,null,null,null,null,null,null,null,null,null,null,"低炭素",null,null,null,null,null,null,"□","□",null,null,null,null,null,null,null,null,null,null,null,null,null,null,29]
[null,null,"配置図",null,null,null,null,null,null,null,null,null,null,null,null,null,null,null,null,"フラット35",null,null,null,null,null,null,"□","□",null,null,null,null,null,null,null,null,null,null,null,null,null,null,30]
[null,null,"仕上表",null,null,null,null,null,null,null,null,null,null,null,null,null,null,null,null,null,null,null,null,null,null,null,"□","□",null,null,null,null,null,null,null,null,null,null,null,null,null,null,31]
[null,null,"設備機器表",null,null,null,null,null,null,"※他の図書に明示したときは、",null,null,null,null,null,null,null,null,null,null,null,null,null,null,null,null,"□"]
[null,null,"各階平面図",null,null,null,null,null,null,"　当該図書の添付不要",null,null,null,null,null,null,null,null,null,null,null,null,null,null,null,null,"□"]
[null,null,"床面積求積図",null,null,null,null,null,null,null,null,null,null,null,null,null,null,null,null,null,null,null,null,null,null,null,"□"]
[null,null,"立面図",null,null,null,null,null,null,null,null,null,null,null,null,null,null,null,null,null,null,null,null,null,null,null,"□"]
[null,null,"矩計図または断面図",null,null,null,null,null,null,null,null,null,null,null,null,null,null,null,null,null,null,null,null,null,null,null,"□"]
[null,null,"各部詳細図",null,null,null,null,null,null,null,null,null,null,null,null,null,null,null,null,null,null,null,null,null,null,null,"□"]
[null,null,"各種計算書",null,null,null,null,null,null,null,null,null,null,null,null,null,null,null,"※当センターが交付したものに限る",null,null,null,null,null,null,null,"□"]
[null,null,null,null,null,null,null,null,null,null,null,null,null,null,null,null,null,null,"※写しの添付により、"]
[null,null,null,null,null,null,null,null,null,null,null,null,null,null,null,null,null,null,"　左欄の図書の添付が省略可"]
[]
[]
[]
[]
[]
[]
[]
[]
[]
[]
[]
[]
["BELS表示プレート注文書"]
[]
["［建築場所］",null,null,null,{"$f":"E13","v":""}]
["［申請者名］",null,null,null,{"$f":"E14","v":""}]
["［会 社 名］",null,null,null,{"$f":"IF(E15=\"\",\"\",E15)","v":""}]
["［担当者名］",null,null,null,{"$f":"IF(E16=\"\",\"\",E16)","v":""},null,null,null,null,null,"［E-mailアドレス］",null,null,null,null,null,{"$f":"IF(Q16=\"\",\"\",Q16)","v":""}]
["［電話番号］",null,null,null,{"$f":"IF(E17=\"\",\"\",E17)","v":""},null,null,null,null,null,"［　FAX　番号　］",null,null,null,null,null,{"$f":"IF(Q17=\"\",\"\",Q17)","v":""}]
[]
[]
[]
["●BELS表示プレート等の希望有無について、該当に”☑” でチェックし、数量を記入してください●"]
[null,null,"希望しない",null,null,null,null,null,null,null,null,null,null,null,null,null,null,null,"※プレート代等は、別途料金を頂きます。"]
[null,null,"希望する（別紙の「BELSプレートアイテム一覧」を確認のうえ、以下に☑と数量を記入してください。）"]
["製品項目",null,null,null,null,null,"サイズ",null,"表示方法",null,null,null,null,null,null,null,null,null,null,null,"フレーム",null,null,null,null,null,"数量"]
["室内用カウンター置きプレート",null,null,null,null,null,"Ａ６",null,"ステンレス","選択不可",null,null,"アクリル",null,"A:表貼り",null,null,"B:立体",null,null,"なし"]
[null,null,"材質：ステンレス",null,null,null,"Ｂ６",null,null,"選択不可",null,null,null,null,"A:表貼り",null,null,"B:立体",null,null,"なし"]
[null,null,"材質：透明アクリル",null,null,null,"Ｂ５",null,null,"選択不可",null,null,null,null,"A:表貼り",null,null,"B:立体",null,null,"なし"]
["屋内用プレート",null,null,null,null,null,"Ａ４",null,null,null,null,null,null,null,"A:表貼り",null,null,"B:立体",null,null,"なし"]
["（材質：透明アクリル）",null,null,null,null,null,"Ａ３",null,null,null,null,null,null,null,"A:表貼り",null,null,"B:立体",null,null,"なし"]
["屋外対応プレート",null,null,null,null,null,"Ａ４",null,null,"選択不可",null,null,null,null,null,null,null,null,null,null,null,"シルバー",null,null,"ホワイト"]
["（材質：透明アクリル)",null,null,null,null,null,"Ａ３",null,null,"選択不可",null,null,null,null,null,null,null,null,null,null,null,"シルバー",null,null,"ホワイト"]
["シール",null,null,null,null,null,"Ａ６",null,null,"選択不可",null,null,null,null,null,null,null,null,null,null,"なし"]
["（材質：白ＰＥＴ",null,null,null,null,null,"Ｂ６",null,null,"選択不可",null,null,null,null,null,null,null,null,null,null,"なし"]
["　　　、ラミネート加工）",null,null,null,null,null,"Ｂ５",null,null,"選択不可",null,null,null,null,null,null,null,null,null,null,"なし"]
[null,null,null,null,null,null,"省略版横長タイプ",null,null,null,"W100×Ｈ40"]
[null,null,null,null,null,null,"省略版四角タイプ",null,null,null,"W59×Ｈ47"]

{"sheet":"委任状","index":4,"n_rows":56,"n_cols":26,"rows_kept":56,"cut":false,"hidden":false,"merged":[[2,0,2,26],[37,13,39,24],[34,13,36,24],[40,13,42,24],[13,0,13,26],[17,0,19,26],[7,5,7,17],[49,13,51,24],[52,13,54,24],[55,13,57,24],[29,2,30,17],[26,2,26,17],[43,13,45,24],[46,13,48,24],[32,22,32,23],[32,19,32,20],[32,16,32,17],[32,14,32,15]]}
[]
[]
["委　任　状"]
[]
[]
[]
[]
[null,null,"私は",null,null,{"$f":"CONCATENATE(入力シート!$H$26,\"　\",入力シート!$H$24)","v":"　"},null,null,null,null,null,null,null,null,null,null,null,null,null,"を代理人と定め"]
[]
[null,"下記に関する権限を委任します。"]
[]
[]
[]
["記"]
[]
[]
[]
["　建築物省エネルギー性能表示制度に基づく、ＢＥＬＳに係る評価申請業務に関する手続き、提出図書の作成、訂正及び審査機関から交付される文書の受領"]
[]
[]
[]
[]
[]
[]
[]
[null,"建築物の名称"]
[null,null,{"$f":"IF(入力シート!$H$4=\"\",\"\",入力シート!$H$4)","v":""}]
[]
[null,"建築物の所在地"]
[null,null,{"$f":"IF(入力シート!$H$6=\"\",\"\",入力シート!$H$6)","v":""}]
[]
[]
[null,null,null,null,null,null,null,null,null,null,null,null,null,null,"令和",null,null,null,"年",null,null,"月",null,null,"日"]
[]
[null,null,null,null,null,null,null,null,null,null,"住　所",null,null,{"$f":"IF(入力シート!$H$12=\"\",\"\",入力シート!$H$12)","v":""}]
[]
[]
[null,null,null,null,null,null,null,null,null,null,"氏　名",null,null,{"$f":"IF(入力シート!$H$10=\"\",\"\",入力シート!$H$10)","v":""}]
[]
[]
[null,null,null,null,null,null,null,null,null,null,{"$f":"IF(N41=\"\",\"\",\"住　所\")","v":""},null,null,{"$f":"IF(入力シート!$H$18=\"\",\"\",入力シート!$H$18)","v":""}]
[]
[]
[null,null,null,null,null,null,null,null,null,null,{"$f":"IF(N44=\"\",\"\",\"氏　名\")","v":""},null,null,{"$f":"IF(入力シート!$H$16=\"\",\"\",入力シート!$H$16)","v":""}]
[]
[]
[null,null,null,null,null,null,null,null,null,null,{"$f":"IF(N47=\"\",\"\",\"住　所\")","v":""},null,null,{"$f":"IF('2-別 (申)'!J7=\"\",\"\",'2-別 (申)'!J7)","v":""},null,null,null,null,null,null,null,null,null,null,null,{"$f":"IF(N47=\"\",\"\",\"印\")","v":""}]
[]
[]
[null,null,null,null,null,null,null,null,null,null,{"$f":"IF(N50=\"\",\"\",\"氏　名\")","v":""},null,null,{"$f":"IF('2-別 (申)'!J5=\"\",\"\",'2-別 (申)'!J5)","v":""},null,null,null,null,null,null,null,null,null,null,null,{"$f":"IF(N50=\"\",\"\",\"印\")","v":""}]
[]
[]
[null,null,null,null,null,null,null,null,null,null,{"$f":"IF(N53=\"\",\"\",\"住　所\")","v":""},null,null,{"$f":"IF('2-別 (申)'!J21=\"\",\"\",'2-別 (申)'!J21)","v":""},null,null,null,null,null,null,null,null,null,null,null,{"$f":"IF(N53=\"\",\"\",\"印\")","v":""}]
[]
[]
[null,null,null,null,null,null,null,null,null,null,{"$f":"IF(N56=\"\",\"\",\"氏　名\")","v":""},null,null,{"$f":"IF('2-別 (申)'!J19=\"\",\"\",'2-別 (申)'!J19)","v":""},null,null,null,null,null,null,null,null,null,null,null,{"$f":"IF(N56=\"\",\"\",\"印\")","v":""}]

{"sheet":"評価申請書1面","index":5,"n_rows":58,"n_cols":27,"rows_kept":58,"cut":false,"hidden":false,"merged":[[57,0,60,26],[5,0,5,26],[7,0,7,26],[21,14,23,25],[24,14,26,25],[27,14,29,25],[30,14,32,25],[48,0,55,26],[34,1,36,25],[11,18,11,19],[11,21,11,22],[11,24,11,25]]}
["（別記様式第26号）"]
[]
[]
[]
[]
["ＢＥＬＳに係る評価申請書"]
[]
["（第一面）"]
[]
[]
[]
[null,null,null,null,null,null,null,null,null,null,null,null,null,null,null,null,null,null,null,null,"年",null,null,"月",null,null,"日"]
[]
[]
[null,"一般財団法人 岩手県建築住宅センター"]
[null,null,null,"理事長　　渡 邊　健 治",null,null,null,null,null,null,null,"　様"]
[]
[]
[null,null,null,null,null,null,null,null,null,null,null,null,null,"申請者の氏名又は名称"]
[null,null,null,null,null,null,null,null,null,null,null,null,null,"（法人にあってはその代表者の氏名）"]
[]
[null,null,null,null,null,null,null,null,null,null,null,null,null,null,{"$f":"IF(入力シート!H10=\"\",\"\",入力シート!H10)","v":""}]
[]
[]
[null,null,null,null,null,null,null,null,null,null,null,null,null,null,{"$f":"IF(入力シート!H16=\"\",\"\",入力シート!H16)","v":""}]
[]
[]
[null,null,null,null,null,null,null,null,null,null,null,null,null,null,{"$f":"IF('2-別 (申)'!J12=\"\",\"\",'2-別 (申)'!J12)","v":""},null,null,null,null,null,null,null,null,null,null,null,{"$f":"IF(O28=\"\",\"\",\"印\")","v":""}]
[]
[]
[null,null,null,null,null,null,null,null,null,null,null,null,null,null,{"$f":"IF('2-別 (申)'!J19=\"\",\"\",'2-別 (申)'!J19)","v":""},null,null,null,null,null,null,null,null,null,null,null,{"$f":"IF(O31=\"\",\"\",\"印\")","v":""}]
[]
[]
[]
[null,"　BELSに係る評価の申請をします。この申請書及び添付図書に記載の事項は、事実に相違ありません。"]
[]
[]
[]
[]
[]
[]
[]
[]
[]
["※受付欄",null,null,null,null,null,null,null,null,null,"※料金欄"]
[null,null,null,"年",null,null,"月",null,null,"日"]
["第",null,null,null,null,null,null,null,null,"号"]
["申請受理者氏名",null,null,null,null,null,null,null,null,null,null,null,null,null,null,null,null,null,null,null,null,null,null,null,null,"円"]
["＜評価機関からのお願い＞\n　BELSに係る評価申請の内容について、個人や個別の建築物が特定されない統計情報として、国土交通省、経済産業省、環境省等の関係省庁及び国立研究開発法人建築研究所等の関係機関に提供することがございますので、あらかじめご了承のほどお願い申し上げます。\n　また、BELS評価書取得物件は、申請書・評価書に記載されている項目について、（一社）住宅性能評価・表示協会ホームページにて、BELS事例紹介として評価結果等の公表をさせていただきます。ただし、個人や個別の建築物が特定される情報については、掲載承諾書にて公開の承諾が得られた場合に限ります。"]
[]
[]
[]
[]
[]
[]
[]
[]
["（注意）　　　　　　　　　　　　　　　　　　　　　　　　　　　　　　　　　　　　　　\n  1. 申請者が法人である場合には、代表者の氏名を併せて記載してください。\n  "]

{"sheet":"2面","index":6,"n_rows":57,"n_cols":34,"rows_kept":57,"cut":false,"hidden":false,"merged":[[31,9,31,25],[27,9,27,10],[32,9,33,25],[28,9,28,25],[29,9,29,25],[0,0,0,26],[5,9,6,25],[7,9,8,25],[4,9,4,25],[11,9,11,25],[12,9,12,25],[27,13,27,16],[27,19,27,24],[30,14,30,16],[30,9,30,10],[30,20,30,24],[30,11,30,13],[13,9,13,25],[21,9,22,25],[19,9,20,25],[18,9,18,25],[14,9,15,25]]}
["（第二面）"]
["申請者等の概要"]
[]
["【１.申請者】"]
[null,"【氏名又は名称のﾌﾘｶﾞﾅ】",null,null,null,null,null,null,null,{"$f":"PHONETIC(入力シート!$H$10)","v":""}]
[null,"【氏名又は名称】",null,null,null,null,null,null,null,{"$f":"IF(入力シート!$H$10=\"\",\"\",入力シート!$H$10)","v":""}]
[]
[null,"【住所】",null,null,null,null,null,null,null,{"$f":"IF(入力シート!$H$12=\"\",\"\",入力シート!$H$12)","v":""}]
[]
[]
["【２.代理者】"]
[null,"【氏名又は名称のﾌﾘｶﾞﾅ】",null,null,null,null,null,null,null,{"$f":"PHONETIC(入力シート!$H$24)","v":""}]
[null,"【氏名又は名称】",null,null,null,null,null,null,null,{"$f":"IF(入力シート!$H$24=\"\",\"\",入力シート!$H$24)","v":""},null,null,null,null,null,null,null,null,null,null,null,null,null,null,null,null,null,null,null,null,null,"岩手県",null,"国土交通大臣"]
[null,null,null,null,null,null,null,null,null,{"$f":"IF(入力シート!$H$26=\"\",\"\",入力シート!$H$26)","v":""},null,null,null,null,null,null,null,null,null,null,null,null,null,null,null,null,null,null,null,null,null,"青森県",null,"大臣"]
[null,"【住所】",null,null,null,null,null,null,null,{"$f":"IF(入力シート!$H$28=\"\",\"\",入力シート!$H$28)","v":""},null,null,null,null,null,null,null,null,null,null,null,null,null,null,null,null,null,null,null,null,null,"秋田県",null,{"$f":"#REF!&\"知事\"","v":{"$error":"#REF!"}}]
[null,null,null,null,null,null,null,null,null,null,null,null,null,null,null,null,null,null,null,null,null,null,null,null,null,null,null,null,null,null,null,"山形県",null,{"$f":"AF14&\"知事\"","v":"青森県知事"}]
[null,null,null,null,null,null,null,null,null,null,null,null,null,null,null,null,null,null,null,null,null,null,null,null,null,null,null,null,null,null,null,"茨城県",null,{"$f":"AF15&\"知事\"","v":"秋田県知事"}]
["【３.建築主】",null,null,null,null,null,null,null,null,null,null,null,null,null,null,null,null,null,null,null,null,null,null,null,null,null,null,null,null,null,null,"栃木県",null,{"$f":"AF16&\"知事\"","v":"山形県知事"}]
[null,"【氏名又は名称のﾌﾘｶﾞﾅ】",null,null,null,null,null,null,null,{"$f":"PHONETIC(入力シート!$H$10)","v":""},null,null,null,null,null,null,null,null,null,null,null,null,null,null,null,null,null,null,null,null,null,"群馬県",null,{"$f":"#REF!&\"知事\"","v":{"$error":"#REF!"}}]
[null,"【氏名又は名称】",null,null,null,null,null,null,null,{"$f":"IF(入力シート!$H$32=\"\",\"\",入力シート!$H$32)","v":""},null,null,null,null,null,null,null,null,null,null,null,null,null,null,null,null,null,null,null,null,null,"埼玉県",null,{"$f":"AF17&\"知事\"","v":"茨城県知事"}]
[null,null,null,null,null,null,null,null,null,null,null,null,null,null,null,null,null,null,null,null,null,null,null,null,null,null,null,null,null,null,null,"千葉県",null,"栃木県知事"]
[null,"【住所】",null,null,null,null,null,null,null,{"$f":"IF(入力シート!$H$34=\"\",\"\",入力シート!$H$34)","v":""},null,null,null,null,null,null,null,null,null,null,null,null,null,null,null,null,null,null,null,null,null,"神奈川県",null,{"$f":"AF20&\"知事\"","v":"埼玉県知事"}]
[null,null,null,null,null,null,null,null,null,null,null,null,null,null,null,null,null,null,null,null,null,null,null,null,null,null,null,null,null,null,null,"新潟県",null,{"$f":"AF21&\"知事\"","v":"千葉県知事"}]
[null,"【建築主と申請物件の利用関係】",null,null,null,null,null,null,null,null,null,null,null,null,null,null,null,null,null,null,null,null,null,null,null,null,null,null,null,null,null,"石川県",null,{"$f":"AF22&\"知事\"","v":"神奈川県知事"}]
[null,null,null,"自己所有物件",null,null,null,null,null,"賃貸物件",null,null,null,"給与住宅",null,null,null,"分譲物件",null,null,null,"その他"]
[]
["【４.設計者】",null,null,null,null,null,null,null,null,null,null,null,null,null,null,null,null,null,null,null,null,null,null,null,null,null,null,null,null,null,null,"福井県",null,{"$f":"AF23&\"知事\"","v":"新潟県知事"}]
[null,"【資格】",null,null,null,null,null,null,null,{"$f":"IF(入力シート!$H$39=\"\",\"\",入力シート!$H$39)","v":"　"},null,"建築士",null,{"$f":"IF(入力シート!$N$39=\"\",\"\",入力シート!$N$39)","v":"国土交通大臣"},null,null,null,"登録第",null,{"$f":"IF(入力シート!$V$39=\"\",\"\",入力シート!$V$39)","v":""},null,null,null,null,null,"号",null,null,null,null,null,"山梨県",null,{"$f":"#REF!&\"知事\"","v":{"$error":"#REF!"}}]
[null,"【氏名又は名称のﾌﾘｶﾞﾅ】",null,null,null,null,null,null,null,{"$f":"PHONETIC(入力シート!$H$40)","v":""},null,null,null,null,null,null,null,null,null,null,null,null,null,null,null,null,null,null,null,null,null,"長野県",null,{"$f":"AF24&\"知事\"","v":"石川県知事"}]
[null,"【氏名又は名称】",null,null,null,null,null,null,null,{"$f":"IF(入力シート!$H$40=\"\",\"\",入力シート!$H$40)","v":""},null,null,null,null,null,null,null,null,null,null,null,null,null,null,null,null,null,null,null,"1級",null,"岐阜県",null,"福井県知事"]
[null,"【名称（建築士事務所名）】",null,null,null,null,null,null,null,{"$f":"IF(入力シート!$H$41=\"\",\"\",入力シート!$H$41)","v":""},null,"建築士事務所",null,null,{"$f":"IF(入力シート!$N$41=\"\",\"\",入力シート!$N$41)","v":""},null,null,"知事登録第",null,null,{"$f":"IF(入力シート!$W$41=\"\",\"\",入力シート!$W$41)","v":""},null,null,null,null,"号",null,null,null,"2級",null,"静岡県",null,"山梨県知事"]
[null,null,null,null,null,null,null,null,null,{"$f":"IF(入力シート!$H$42=\"\",\"\",入力シート!$H$42)","v":""},null,null,null,null,null,null,null,null,null,null,null,null,null,null,null,null,null,null,null,"木造",null,"愛知県",null,"長野県知事"]
[null,"【住所】",null,null,null,null,null,null,null,{"$f":"IF(入力シート!$H$44=\"\",\"\",入力シート!$H$44)","v":""},null,null,null,null,null,null,null,null,null,null,null,null,null,null,null,null,null,null,null,null,null,"滋賀県",null,{"$f":"AF31&\"知事\"","v":"静岡県知事"}]
[null,null,null,null,null,null,null,null,null,null,null,null,null,null,null,null,null,null,null,null,null,null,null,null,null,null,null,null,null,null,null,"京都府",null,{"$f":"AF32&\"知事\"","v":"愛知県知事"}]
[null,null,null,null,null,null,null,null,null,null,null,null,null,null,null,null,null,null,null,null,null,null,null,null,null,null,null,null,null,null,null,"兵庫県",null,{"$f":"AF33&\"知事\"","v":"滋賀県知事"}]
["【５.備考】",null,null,null,null,null,null,null,null,null,null,null,null,null,null,null,null,null,null,null,null,null,null,null,null,null,null,null,null,null,null,"福岡県",null,{"$f":"#REF!&\"知事\"","v":{"$error":"#REF!"}}]
[]
[]
[]
[null,null,null,null,null,null,null,null,null,null,null,null,null,null,null,null,null,null,null,null,null,null,null,null,null,null,null,null,null,null,null,"長崎県",null,{"$f":"#REF!&\"知事\"","v":{"$error":"#REF!"}}]
[null,null,null,null,null,null,null,null,null,null,null,null,null,null,null,null,null,null,null,null,null,null,null,null,null,null,null,null,null,null,null,"熊本県",null,{"$f":"AF36&\"知事\"","v":"福岡県知事"}]
[null,null,null,null,null,null,null,null,null,null,null,null,null,null,null,null,null,null,null,null,null,null,null,null,null,null,null,null,null,null,null,"大分県",null,{"$f":"#REF!&\"知事\"","v":{"$error":"#REF!"}}]
["(注意)",null,null,null,null,null,null,null,null,null,null,null,null,null,null,null,null,null,null,null,null,null,null,null,null,null,null,null,null,null,null,"宮崎県",null,{"$f":"AF40&\"知事\"","v":"長崎県知事"}]
["1.【3.建築主】「建築主と申請物件の利用関係」における用語の定義は次のとおりです。",null,null,null,null,null,null,null,null,null,null,null,null,null,null,null,null,null,null,null,null,null,null,null,null,null,null,null,null,null,null,"鹿児島県",null,"熊本県知事"]
["　　①　自己所有物件（持ち家）",null,null,null,null,null,null,null,null,null,null,null,null,null,null,null,null,null,null,null,null,null,null,null,null,null,null,null,null,null,null,"沖縄県",null,"大分県知事"]
["　　　申請の対象とする範囲の過半以上を建築主が居住する目的で使用する（予定の）のもの。",null,null,null,null,null,null,null,null,null,null,null,null,null,null,null,null,null,null,null,null,null,null,null,null,null,null,null,null,null,null,null,null,"宮崎県知事"]
["　　②　賃貸物件（賃貸住宅）",null,null,null,null,null,null,null,null,null,null,null,null,null,null,null,null,null,null,null,null,null,null,null,null,null,null,null,null,null,null,null,null,"鹿児島県知事"]
["　　　申請の対象とする範囲の過半以上を建築主又は建築主より委託された会社等が、賃貸借の契約に基づき",null,null,null,null,null,null,null,null,null,null,null,null,null,null,null,null,null,null,null,null,null,null,null,null,null,null,null,null,null,null,null,null,"沖縄県知事"]
["　　　他人に貸し出す（予定の）もの。"]
["　　③　給与住宅（社宅、公務員住宅等）"]
["　　　申請の対象とする範囲の過半以上を建築主（会社又は団体等）が所有又は管理して、その職員を職務の"]
["　　　都合上又は給与の一部として居住させる（予定の）もの。この場合家賃の支払いの有無を問わない。"]
["　　④　分譲物件（分譲住宅）"]
["　　　申請の対象とする範囲の過半以上を販売する（予定の）もの。"]
["　　⑤　その他"]
["　　　上記以外のもの。"]
["2.申請者が２以上の時は、別紙に必要な事項を記載してください。"]

{"sheet":"2-別 (申)","index":7,"n_rows":21,"n_cols":29,"rows_kept":21,"cut":false,"hidden":false,"merged":[[18,9,19,25],[20,9,21,25],[10,9,10,25],[11,9,12,25],[13,9,14,25],[0,0,0,26],[3,9,3,25],[4,9,5,25],[6,9,7,25],[17,9,17,25]]}
["（第二面　別紙：申請者）"]
["申請者等の概要"]
["【１.申請者2】"]
[null,"【氏名又は名称のフリガナ】",null,null,null,null,null,null,null,{"$f":"PHONETIC(J5)","v":""}]
[null,"【氏名又は名称】",null,null,null,null,null,null,null,null,null,null,null,null,null,null,null,null,null,null,null,null,null,null,null,null,null,null,"※申請者が2名以上の場合に提出してください。"]
[]
[null,"【住所】"]
[]
[]
["【１.申請者3】"]
[null,"【氏名又は名称のフリガナ】",null,null,null,null,null,null,null,{"$f":"PHONETIC(J12)","v":""}]
[null,"【氏名又は名称】"]
[]
[null,"【住所】"]
[]
[]
["【１.申請者4】"]
[null,"【氏名又は名称のフリガナ】",null,null,null,null,null,null,null,{"$f":"PHONETIC(J19)","v":""}]
[null,"【氏名又は名称】"]
[]
[null,"【住所】"]

{"sheet":"2-別 (主)","index":8,"n_rows":21,"n_cols":29,"rows_kept":21,"cut":false,"hidden":false,"merged":[[17,9,17,25],[18,9,19,25],[20,9,21,25],[0,0,0,26],[11,9,12,25],[13,9,14,25],[3,9,3,25],[4,9,5,25],[6,9,7,25],[10,9,10,25]]}
["（第二面　別紙：建築主）"]
["申請者等の概要"]
["【３.建築主２】"]
[null,"【氏名又は名称のフリガナ】",null,null,null,null,null,null,null,{"$f":"PHONETIC(J5)","v":""}]
[null,"【氏名又は名称】"]
[null,null,null,null,null,null,null,null,null,null,null,null,null,null,null,null,null,null,null,null,null,null,null,null,null,null,null,null,"※建築主が２名以上の場合に提出してください。"]
[null,"【住所】"]
[]
[]
["【３.建築主３】"]
[null,"【氏名又は名称のフリガナ】",null,null,null,null,null,null,null,{"$f":"PHONETIC(J12)","v":""}]
[null,"【氏名又は名称】"]
[]
[null,"【住所】"]
[]
[]
["【３.建築主４】"]
[null,"【氏名又は名称のフリガナ】",null,null,null,null,null,null,null,{"$f":"PHONETIC(J19)","v":""}]
[null,"【氏名又は名称】"]
[]
[null,"【住所】"]

{"sheet":"2-別(設)","index":9,"n_rows":64,"n_cols":37,"rows_kept":64,"cut":false,"hidden":false,"merged":[[26,9,27,25],[21,19,21,24],[22,9,22,25],[24,9,24,10],[24,14,24,16],[24,20,24,24],[25,9,25,25],[23,9,23,25],[24,11,24,13],[7,9,7,25],[0,0,0,26],[3,9,3,10],[3,13,3,16],[3,19,3,24],[4,9,4,25],[6,11,6,13],[5,9,5,25],[6,9,6,10],[6,14,6,16],[6,20,6,24],[21,9,21,10],[21,13,21,16],[8,9,9,25],[12,9,12,10],[12,13,12,16],[12,19,12,24],[13,9,13,25],[16,9,16,25],[17,9,18,25],[15,20,15,24],[15,11,15,13],[14,9,14,25],[15,9,15,10],[15,14,15,16]]}
["（第二面　別紙：設計者等）"]
["申請者等の概要"]
["【４.設計者２】"]
[null,"【資格】",null,null,null,null,null,null,null,null,null,"建築士",null,null,null,null,null,"登録第",null,null,null,null,null,null,null,"号"]
[null,"【氏名又は名称のフリガナ】",null,null,null,null,null,null,null,{"$f":"PHONETIC(J6)","v":""}]
[null,"【氏名又は名称】",null,null,null,null,null,null,null,null,null,null,null,null,null,null,null,null,null,null,null,null,null,null,null,null,null,null,"※設計者が２名以上の場合に提出してください。"]
[null,"【名称（建築士事務所名）】",null,null,null,null,null,null,null,null,null,"建築士事務所",null,null,null,null,null,"知事登録第",null,null,null,null,null,null,null,"号"]
[]
[null,"【住所】"]
[]
[]
["【４.設計者３】"]
[null,"【資格】",null,null,null,null,null,null,null,null,null,"建築士",null,null,null,null,null,"登録第",null,null,null,null,null,null,null,"号",null,null,null,null,null,null,"資格",null,"登録先（知事無し）",null,"登録先"]
[null,"【氏名又は名称のフリガナ】",null,null,null,null,null,null,null,{"$f":"PHONETIC(J15)","v":""}]
[null,"【氏名又は名称】",null,null,null,null,null,null,null,null,null,null,null,null,null,null,null,null,null,null,null,null,null,null,null,null,null,null,null,null,null,null,"1級",null,"岩手県",null,"国土交通大臣"]
[null,"【名称（建築士事務所名）】",null,null,null,null,null,null,null,null,null,"建築士事務所",null,null,null,null,null,"知事登録第",null,null,null,null,null,null,null,"号",null,null,null,null,null,null,"2級",null,"北海道",null,"建設大臣"]
[null,null,null,null,null,null,null,null,null,null,null,null,null,null,null,null,null,null,null,null,null,null,null,null,null,null,null,null,null,null,null,null,"木造",null,"青森県",null,"大臣"]
[null,"【住所】",null,null,null,null,null,null,null,null,null,null,null,null,null,null,null,null,null,null,null,null,null,null,null,null,null,null,null,null,null,null,null,null,"宮城県",null,{"$f":"AI15&\"知事\"","v":"岩手県知事"}]
[null,null,null,null,null,null,null,null,null,null,null,null,null,null,null,null,null,null,null,null,null,null,null,null,null,null,null,null,null,null,null,null,null,null,"秋田県",null,"北海道知事"]
[null,null,null,null,null,null,null,null,null,null,null,null,null,null,null,null,null,null,null,null,null,null,null,null,null,null,null,null,null,null,null,null,null,null,"山形県",null,"青森県知事"]
["【４.設計者４】",null,null,null,null,null,null,null,null,null,null,null,null,null,null,null,null,null,null,null,null,null,null,null,null,null,null,null,null,null,null,null,null,null,"福島県",null,"宮城県知事"]
[null,"【資格】",null,null,null,null,null,null,null,null,null,"建築士",null,null,null,null,null,"登録第",null,null,null,null,null,null,null,"号",null,null,null,null,null,null,null,null,"茨城県",null,"秋田県知事"]
[null,"【氏名又は名称のフリガナ】",null,null,null,null,null,null,null,{"$f":"PHONETIC(J24)","v":""},null,null,null,null,null,null,null,null,null,null,null,null,null,null,null,null,null,null,null,null,null,null,null,null,"栃木県",null,"山形県知事"]
[null,"【氏名又は名称】",null,null,null,null,null,null,null,null,null,null,null,null,null,null,null,null,null,null,null,null,null,null,null,null,null,null,null,null,null,null,null,null,"群馬県",null,"福島県知事"]
[null,"【名称（建築士事務所名）】",null,null,null,null,null,null,null,null,null,"建築士事務所",null,null,null,null,null,"知事登録第",null,null,null,null,null,null,null,"号",null,null,null,null,null,null,null,null,"埼玉県",null,"茨城県知事"]
[null,null,null,null,null,null,null,null,null,null,null,null,null,null,null,null,null,null,null,null,null,null,null,null,null,null,null,null,null,null,null,null,null,null,"千葉県",null,"栃木県知事"]
[null,"【住所】",null,null,null,null,null,null,null,null,null,null,null,null,null,null,null,null,null,null,null,null,null,null,null,null,null,null,null,null,null,null,null,null,"東京都",null,"群馬県知事"]
[null,null,null,null,null,null,null,null,null,null,null,null,null,null,null,null,null,null,null,null,null,null,null,null,null,null,null,null,null,null,null,null,null,null,"神奈川県",null,"埼玉県知事"]
[null,null,null,null,null,null,null,null,null,null,null,null,null,null,null,null,null,null,null,null,null,null,null,null,null,null,null,null,null,null,null,null,null,null,"新潟県",null,"千葉県知事"]
[null,null,null,null,null,null,null,null,null,null,null,null,null,null,null,null,null,null,null,null,null,null,null,null,null,null,null,null,null,null,null,null,null,null,"富山県",null,"東京都知事"]
[null,null,null,null,null,null,null,null,null,null,null,null,null,null,null,null,null,null,null,null,null,null,null,null,null,null,null,null,null,null,null,null,null,null,"石川県",null,"神奈川県知事"]
[null,null,null,null,null,null,null,null,null,null,null,null,null,null,null,null,null,null,null,null,null,null,null,null,null,null,null,null,null,null,null,null,null,null,"福井県",null,"新潟県知事"]
[null,null,null,null,null,null,null,null,null,null,null,null,null,null,null,null,null,null,null,null,null,null,null,null,null,null,null,null,null,null,null,null,null,null,"山梨県",null,"富山県知事"]
[null,null,null,null,null,null,null,null,null,null,null,null,null,null,null,null,null,null,null,null,null,null,null,null,null,null,null,null,null,null,null,null,null,null,"長野県",null,"石川県知事"]
[null,null,null,null,null,null,null,null,null,null,null,null,null,null,null,null,null,null,null,null,null,null,null,null,null,null,null,null,null,null,null,null,null,null,"岐阜県",null,"福井県知事"]
[null,null,null,null,null,null,null,null,null,null,null,null,null,null,null,null,null,null,null,null,null,null,null,null,null,null,null,null,null,null,null,null,null,null,"静岡県",null,"山梨県知事"]
[null,null,null,null,null,null,null,null,null,null,null,null,null,null,null,null,null,null,null,null,null,null,null,null,null,null,null,null,null,null,null,null,null,null,"愛知県",null,"長野県知事"]
[null,null,null,null,null,null,null,null,null,null,null,null,null,null,null,null,null,null,null,null,null,null,null,null,null,null,null,null,null,null,null,null,null,null,"三重県",null,"岐阜県知事"]
[null,null,null,null,null,null,null,null,null,null,null,null,null,null,null,null,null,null,null,null,null,null,null,null,null,null,null,null,null,null,null,null,null,null,"滋賀県",null,"静岡県知事"]
[null,null,null,null,null,null,null,null,null,null,null,null,null,null,null,null,null,null,null,null,null,null,null,null,null,null,null,null,null,null,null,null,null,null,"京都府",null,"愛知県知事"]
[null,null,null,null,null,null,null,null,null,null,null,null,null,null,null,null,null,null,null,null,null,null,null,null,null,null,null,null,null,null,null,null,null,null,"大阪府",null,"三重県知事"]
[null,null,null,null,null,null,null,null,null,null,null,null,null,null,null,null,null,null,null,null,null,null,null,null,null,null,null,null,null,null,null,null,null,null,"兵庫県",null,"滋賀県知事"]
[null,null,null,null,null,null,null,null,null,null,null,null,null,null,null,null,null,null,null,null,null,null,null,null,null,null,null,null,null,null,null,null,null,null,"奈良県",null,"京都府知事"]
[null,null,null,null,null,null,null,null,null,null,null,null,null,null,null,null,null,null,null,null,null,null,null,null,null,null,null,null,null,null,null,null,null,null,"和歌山県",null,"大阪府知事"]
[null,null,null,null,null,null,null,null,null,null,null,null,null,null,null,null,null,null,null,null,null,null,null,null,null,null,null,null,null,null,null,null,null,null,"鳥取県",null,"兵庫県知事"]
[null,null,null,null,null,null,null,null,null,null,null,null,null,null,null,null,null,null,null,null,null,null,null,null,null,null,null,null,null,null,null,null,null,null,"島根県",null,"奈良県知事"]
[null,null,null,null,null,null,null,null,null,null,null,null,null,null,null,null,null,null,null,null,null,null,null,null,null,null,null,null,null,null,null,null,null,null,"岡山県",null,"和歌山県知事"]
[null,null,null,null,null,null,null,null,null,null,null,null,null,null,null,null,null,null,null,null,null,null,null,null,null,null,null,null,null,null,null,null,null,null,"広島県",null,"鳥取県知事"]
[null,null,null,null,null,null,null,null,null,null,null,null,null,null,null,null,null,null,null,null,null,null,null,null,null,null,null,null,null,null,null,null,null,null,"山口県",null,"島根県知事"]
[null,null,null,null,null,null,null,null,null,null,null,null,null,null,null,null,null,null,null,null,null,null,null,null,null,null,null,null,null,null,null,null,null,null,"徳島県",null,"岡山県知事"]
[null,null,null,null,null,null,null,null,null,null,null,null,null,null,null,null,null,null,null,null,null,null,null,null,null,null,null,null,null,null,null,null,null,null,"香川県",null,"広島県知事"]
[null,null,null,null,null,null,null,null,null,null,null,null,null,null,null,null,null,null,null,null,null,null,null,null,null,null,null,null,null,null,null,null,null,null,"愛媛県",null,"山口県知事"]
[null,null,null,null,null,null,null,null,null,null,null,null,null,null,null,null,null,null,null,null,null,null,null,null,null,null,null,null,null,null,null,null,null,null,"高知県",null,"徳島県知事"]
[null,null,null,null,null,null,null,null,null,null,null,null,null,null,null,null,null,null,null,null,null,null,null,null,null,null,null,null,null,null,null,null,null,null,"福岡県",null,"香川県知事"]
[null,null,null,null,null,null,null,null,null,null,null,null,null,null,null,null,null,null,null,null,null,null,null,null,null,null,null,null,null,null,null,null,null,null,"佐賀県",null,"愛媛県知事"]
[null,null,null,null,null,null,null,null,null,null,null,null,null,null,null,null,null,null,null,null,null,null,null,null,null,null,null,null,null,null,null,null,null,null,"長崎県",null,"高知県知事"]
[null,null,null,null,null,null,null,null,null,null,null,null,null,null,null,null,null,null,null,null,null,null,null,null,null,null,null,null,null,null,null,null,null,null,"熊本県",null,"福岡県知事"]
[null,null,null,null,null,null,null,null,null,null,null,null,null,null,null,null,null,null,null,null,null,null,null,null,null,null,null,null,null,null,null,null,null,null,"大分県",null,"佐賀県知事"]
[null,null,null,null,null,null,null,null,null,null,null,null,null,null,null,null,null,null,null,null,null,null,null,null,null,null,null,null,null,null,null,null,null,null,"宮崎県",null,"長崎県知事"]
[null,null,null,null,null,null,null,null,null,null,null,null,null,null,null,null,null,null,null,null,null,null,null,null,null,null,null,null,null,null,null,null,null,null,"鹿児島県",null,"熊本県知事"]
[null,null,null,null,null,null,null,null,null,null,null,null,null,null,null,null,null,null,null,null,null,null,null,null,null,null,null,null,null,null,null,null,null,null,"沖縄県",null,"大分県知事"]
[null,null,null,null,null,null,null,null,null,null,null,null,null,null,null,null,null,null,null,null,null,null,null,null,null,null,null,null,null,null,null,null,null,null,null,null,"宮崎県知事"]
[null,null,null,null,null,null,null,null,null,null,null,null,null,null,null,null,null,null,null,null,null,null,null,null,null,null,null,null,null,null,null,null,null,null,null,null,"鹿児島県知事"]
[null,null,null,null,null,null,null,null,null,null,null,null,null,null,null,null,null,null,null,null,null,null,null,null,null,null,null,null,null,null,null,null,null,null,null,null,"沖縄県知事"]

{"sheet":"3面","index":10,"n_rows":35,"n_cols":33,"rows_kept":35,"cut":false,"hidden":false,"merged":[[0,0,0,26],[3,9,3,25],[9,9,9,14],[9,18,9,23],[10,21,10,25],[4,9,4,25],[13,18,13,19],[13,21,13,22],[13,24,13,25],[8,10,8,12],[6,7,7,25],[11,9,11,11]]}
["（第三面）"]
["建築物に関する概要"]
[]
["【１.建築物の名称】",null,null,null,null,null,null,null,null,{"$f":"IF(入力シート!$H$4=\"\",\"\",入力シート!$H$4)","v":""}]
["【２.不動産ID（任意※）】"]
[null,null,"※不動産IDが分かり　かつ　表示を希望される場合のみ記入"]
["【３.建築物の所在地】",null,null,null,null,null,null,{"$f":"IF(入力シート!$H$6=\"\",\"\",入力シート!$H$6)","v":""}]
[]
["【４.該当する地域の区分】",null,null,null,null,null,null,null,null,"（",null,null,null,"）"]
["【５.建築物の構造】",null,null,null,null,null,null,null,null,null,null,null,null,null,null,"造　一部",null,null,null,null,null,null,null,null,"造",null,null,null,null,null,"階数",null,"構造"]
["【６.建築物の階数】",null,null,null,null,null,null,null,null,"（地上）",null,null,2,"階",null,"（地下）",null,null,null,"階"]
["【７.建築物の延べ面積】",null,null,null,null,null,null,null,null,null,null,null,"㎡",null,null,null,null,null,null,null,null,null,null,null,null,null,null,null,null,null,0,null,"木造(在来軸組工法)"]
["【８.建築物の用途】",null,null,null,null,null,null,null,null,null,"一戸建ての住宅",null,null,null,null,null,null,null,null,null,null,null,null,null,null,null,null,null,null,null,1,null,"木造(枠組壁工法)"]
["【９.建築物の新築の竣工時期（計画中の場合は予定工期）】",null,null,null,null,null,null,null,null,null,null,null,null,null,null,null,null,null,null,null,"年",null,null,"月",null,null,"日",null,null,null,2,null,"鉄骨造"]
["【10.申請の対象とする範囲】",null,null,null,null,null,null,null,null,null,"一戸建ての住宅",null,null,null,null,null,null,null,"(⇒申請書第四面作成）",null,null,null,null,null,null,null,null,null,null,null,3]
["【11-1.備考】",null,null,null,null,null,null,null,null,"プレート等交付希望",null,null,null,null,null,null,null,"有",null,"無"]
[null,null,null,null,null,null,null,null,null,null,null,null,null,null,null,null,"※有の場合は、別紙の「BELS評価連絡票」に、"]
[null,null,null,null,null,null,null,null,null,null,null,null,null,null,null,null,"　希望する種類と数量を記入してください。"]
[]
[]
[]
[]
[]
["(注意)"]
["1.①この様式で用いる用語は、別に定める場合を除き、建築物エネルギー消費性能基準等を定める省令"]
["　　（平成28年経済産業省令・国土交通省令第1号）で定める用語の定義に準じます。（各面共通）"]
["　②この様式で用いる用語の定義は、次のとおりです。"]
["　　(1)一戸建ての住宅　建築基準法施行規則(昭和25年建設省令第40号)別紙の表の用途の区分における"]
["　　　　　　　　　　　「一戸建ての住宅」 　　"]
["2.【１．建築物の名称】　ここで記載された名称が評価書に表示されます。"]
["3.【２．不動産ID】　不動産番号IDガイドライン（令和4年3月31日　国土交通省　不動産・建設経済局）"]
["　に定めるルールに基づいて構成される番号（不動産番号13桁-特定コード4桁）となります。"]
["4.【９.建築物の新築の竣工時期（計画中の場合は予定工期）】暦は西暦とし年月日を記載してください。"]
["　なお、日付は上旬、中旬、下旬とすることも可能です。"]
["5.【10．備考】必要に応じて、プレート等の交付についての依頼の有無を記載できます。"]

{"sheet":"4面","index":11,"n_rows":84,"n_cols":25,"rows_kept":84,"cut":false,"hidden":false,"merged":[[83,1,96,25],[79,0,81,26],[71,0,72,26],[73,0,78,26],[0,0,0,26],[11,13,11,22],[62,1,63,25],[69,0,70,26],[19,13,19,22],[67,0,68,26],[27,11,27,13],[25,15,25,23],[66,0,66,26]]}
["（第四面）"]
["申請対象に関する事項（一戸建ての住宅）"]
["【１.申請対象となる建築物の用途】"]
[null,"建築基準法施行規則（昭和25年建設省令第40号）別紙の表の用途の区分"]
[null,null,null,null,"一戸建ての住宅"]
[]
["【２.評価手法に関する事項】"]
[null,"【断熱性能（外皮性能）】"]
[null,null,null,"性能基準"]
[null,null,null,"仕様基準"]
[null,null,null,"誘導仕様基準"]
[null,null,null,"国土交通大臣が認める方法",null,null,null,null,null,null,null,null,"（",null,null,null,null,null,null,null,null,null,null,")"]
[]
[null,"【一次エネルギー消費量】"]
[null,null,null,"性能基準"]
[null,null,null,"仕様基準",null,null,"（断熱性能（外皮性能）の評価手法が性能基準又は仕様基準の場合のみ"]
[null,null,null,null,null,null,"　場合のみ選択可能）"]
[null,null,null,"誘導仕様基準",null,null,null,"（断熱性能（外皮性能）の評価手法が性能基準又は誘導仕様基準の"]
[null,null,null,null,null,null,null,"　場合のみ選択可能）"]
[null,null,null,"国土交通大臣が認める方法",null,null,null,null,null,null,null,null,"（",null,null,null,null,null,null,null,null,null,null,")"]
[]
["【３.一次エネルギー消費量に関する事項】"]
[null,"【再エネ設備に関すること】"]
[null,null,"再エネ設備の有無：",null,null,null,null,null,null,"有",null,null,null,"無"]
[null,null,"再エネ設備の種類：",null,null,null,null,null,null,"太陽光発電設備",null,null,null,null,null,null,null,"太陽熱利用設備"]
[null,null,null,null,null,null,null,null,null,"その他（18文字以内）",null,null,null,null,"（",null,null,null,null,null,null,null,null,null,")"]
[null,null,"再エネ設備の容量の表示：",null,null,null,null,null,null,null,null,"希望する",null,null,null,null,"希望しない"]
[null,null,"再エネ設備の容量（任意※）："]
[null,null,null,"※再エネ設備の容量の表示を希望する場合のみご記入ください（19文字以内）。"]
[]
[null,"【エネルギー消費性能の多段階表示】"]
[null,null,null,"4段階表示（再生可能エネルギー（太陽光発電設備）を考慮しない）"]
[null,null,null,"6段階表示（再生可能エネルギー（太陽光発電設備）を考慮する）※1・2"]
[null,null,"※1　【再エネ設備　有無と種類】にて、再エネ設備「有」かつ再エネ設備の種類が「太陽光発電設備であること。"]
[null,null,"※2　一次エネルギー消費量の評価手法に仕様基準又は誘導仕様基準を採用している場合は、6段階表示と"]
[null,null,"　　　することはできません。"]
[]
["【４.｢ＺＥＨマーク」に関する表示】"]
[null,null,"申請書選択肢は評価書の表示項目。カッコ書きは表示マーク。"]
[null,null,null,null,null,"記載しない"]
[null,null,null,null,null,"『ＺＥＨ』"]
[null,null,null,null,null,"Ｎｅａｒｌｙ ＺＥＨ"]
[null,null,null,null,null,"ＺＥＨ　Ｏｒｉｅｎｔｅｄ"]
[]
["【５.ＺＥＨ　Ｏｒｉｅｎｔｅｄの場合に申告する事項】"]
[null,null,null,"ＺＥＨ　Ｏｒｉｅｎｔｅｄの要件に適合する"]
[]
[]
[]
[]
["【６.参考情報に関する事項】"]
[null,"【二次エネルギー消費量等に関する項目以外の情報】"]
[null,null,null,"記載しない",null,null,null,null,null,"別紙による"]
[]
[null,"【目安光熱費に関すること】"]
[null,null,"※1　目安光熱費の表示は、一次エネルギー消費性能の評価手法が性能基準場合のみ選択してください。"]
[null,null,"目安光熱費の表示：",null,null,null,null,null,null,"希望する",null,null,null,null,"希望しない"]
[null,null,"ガス設備の選択※2：",null,null,null,null,null,null,"都市ガス※3",null,null,null,null,null,"液化石油ガス（LPガス）"]
[null,null,"※2　目安光熱費の表示を希望する場合のみ選択してください。"]
[null,null,"※3　オール電化の場合は「都市ガス」を選択してください。"]
[]
["【７.備考】"]
[]
[]
[]
["(注意)"]
["1.この面は、一戸建ての住宅の申請をする場合に作成してください。"]
["2.【２．評価手法に関する事項】【断熱性能（外皮性能）】【一次エネルギー消費量】の評価手法については\n　BELS評価業務方法書を参照してください。"]
[]
["3.【３．一次エネルギー消費量に関する事項】【再エネ設備に関すること】の再エネ設備の容量の表示を希望す\n　る場合は、表示内容を記載してください。"]
[]
["4.【４．｢ＺＥＨマーク｣に関する表示に関する事項】において、一次エネルギー消費量の評価手法に誘導仕様基\n　準採用した場合は、『ＺＥＨ』及びＮｅａｒｌｙ　ＺＥＨの選択はできません。"]
[]
["5.【５．ＺＥＨ　Ｏｒｉｅｎｔｅｄの場合に申告する事項】\n　都市部狭小地(※1）及び多雪区域(※2)に該当する場合で、外皮性能及び一次エネルギー消費量水準に適合する\n　場合に申告してください。\n　(※1)「北側斜線制限の対象となる用途地域等（第一種及び第二種低層住居専用地域、第一種及び第二種\n　中高層住居専用地域並びに地方自治体の条例において北側斜線規制が定められている地域）」であって、\n　敷地面積が85㎡未満で、かつ平屋建て以外の住宅。\n　(※2)建築基準法で規定する垂直積雪量が100㎝以上に該当する地域。"]
[]
[]
[]
[]
[]
["6.【６．参考情報に関する事項】評価書の参考情報に記載を希望する、その他省エネルギー性能関連情報や災害\n　対策関連情報及び建築物の販売または賃貸に関して参考となる情報について記載を希望する場合は、「別紙に\n　よる」をチェックの上、掲載する情報を記載した別紙を提出してください。"]
[]
[]
[]
[null,"　■参考情報の二次エネルギー消費量に関する項目について\n　　申請対象に住宅部分(共用部分を除く)が含まれ、かつ、WEBプログラム(※)の計算結果を提出する\n　　場合、評価書の「参考情報」欄に以下の二次エネルギー消費量に関する情報が表示されます。\n　　【二次エネルギー消費量に関する項目】\n　　(1)設計二次エネルギー消費量\n　　　・太陽光発電による削減量(kWh/年)・コージェネレーションによる削減量(kWh/年)\n　　　・電力(買電量)(kWh/年)・ガス(MJ/年)・灯油(MJ/年)\n　　(2)基準二次エネルギー消費量\n　　　・電力(kWh/年)・ガス(kWh/年)・灯油(kWh/年)\n\n　　※　WEBプログラムとは、国土技術政策総合研究所及び国立研究開発法人研究所が公開している\n　　　「エネルギー消費性能計算プログラム(住宅版)」をいいます。\n\n　■参考情報の目安光熱費に関する項目について\n　　目安光熱費の基となる設計二次エネルギー消費量は、一定の使用条件（居住人数、エアコン等の使用\n　　時間、外気温度等）を設定した上で国の機関が公開している「エネルギー消費性能計算プログラム\n　　（住宅版）」で算出されたものです。また、目安光熱費の算出には全国統一の燃料単価が用いてお\n　　り、居住者が実際にエネルギー供給会社と契約するものとは異なります。その為、目安光熱費と実際\n　　の光熱費で乖離が生じます。なお、目安光熱費は評価対象項目には含まれておりません。"]

{"sheet":"4-別（情報）","index":12,"n_rows":9,"n_cols":3,"rows_kept":9,"cut":false,"hidden":false,"merged":[[0,0,0,26],[3,2,3,25],[10,1,50,25],[1,0,1,26]]}
["（第四面 別紙：参考情報）"]
[]
[null,"建築物の名称"]
[null,null,{"$f":"IF(入力シート!$H$4=\"\",\"\",入力シート!$H$4)","v":""}]
[]
[null,"・その他省エネルギー性能に関する情報"]
[null,"・災害対策措置に関する情報"]
[null,"・建築物の販売又は賃貸を行う上で参考となる情報"]
[null,"　これらのことに関する情報を記載してください。"]

{"sheet":"設内1面","index":13,"n_rows":56,"n_cols":29,"rows_kept":56,"cut":false,"hidden":false,"merged":[[36,19,36,23],[43,1,43,8],[36,24,36,28],[36,9,36,13],[36,14,36,18],[36,1,36,8],[37,1,37,8],[38,1,38,8],[39,1,39,8],[42,9,42,28],[40,1,40,8],[41,1,41,8],[42,1,42,8],[9,26,32,27],[11,6,24,6],[9,4,24,5],[9,28,32,29],[35,19,35,23],[35,24,35,28],[35,14,35,18],[35,9,35,13],[35,1,35,8],[9,2,24,3],[9,0,32,1],[25,2,32,3],[1,0,1,29],[3,0,3,6],[3,7,3,29],[4,0,4,6],[4,7,4,29],[7,0,8,1],[7,4,7,27],[7,28,8,29],[8,4,8,5],[7,2,8,3],[8,6,8,25],[8,26,8,27]]}
["（別記参考様式第1）"]
["（第一面）"]
["設計内容（現況）説明書"]
["建築物の名称",null,null,null,null,null,null,{"$f":"IF('3面'!$J$4=\"\",\"\",'3面'!$J$4)","v":""}]
["設計者等氏名",null,null,null,null,null,null,{"$f":"IF('2面'!$J$30=\"\",\"\",'2面'!$J$30)","v":""}]
[]
["【基本事項】"]
["確認\n事項",null,"確認\n項目",null,"設　計　内　容（現　況）　説　明　欄",null,null,null,null,null,null,null,null,null,null,null,null,null,null,null,null,null,null,null,null,null,null,null,"設計\n内容\n確認欄"]
[null,null,null,null,"項目",null,"設計内容（現況）",null,null,null,null,null,null,null,null,null,null,null,null,null,null,null,null,null,null,null,"記載\n図書"]
["建物の概要",null,"建築物に関する事項",null,"用　途",null,null,"・建築物の用途"]
[null,null,null,null,null,null,null,null,"非住宅建築物",null,null,null,null,null,null,"住宅",null,null,null,"複合建築物"]
[null,null,null,null,null,null,"申請の対象となる用途（該当する全て）","・住宅　または複合建築物の住宅部分"]
[null,null,null,null,null,null,null,null,"共同住宅等、複合建築物の住戸",null,null,null,null,null,null,null,null,null,null,"一戸建ての住宅"]
[null,null,null,null,null,null,null,"・非住宅　または複合建築物の非住宅部分"]
[null,null,null,null,null,null,null,"　　カッコ内はモデル建物法による用途"]
[null,null,null,null,null,null,null,null,"事務所等",null,null,"（",null,"事務所モデル）"]
[null,null,null,null,null,null,null,null,"ホテル等",null,null,"（",null,"ビジネスホテルモデル",null,null,null,null,null,null,"シティホテルモデル）"]
[null,null,null,null,null,null,null,null,"病院等",null,null,"（",null,"総合病院モデル",null,null,null,null,null,null,"福祉施設モデル"]
[null,null,null,null,null,null,null,null,null,null,null,null,null,"クリニックモデル　）"]
[null,null,null,null,null,null,null,null,"百貨店等",null,null,"（",null,"大規模物販モデル",null,null,null,null,null,null,"小規模物販モデル）"]
[null,null,null,null,null,null,null,null,"学校等",null,null,"（",null,"学校モデル",null,null,null,null,null,null,"幼稚園モデル"]
[null,null,null,null,null,null,null,null,null,null,null,null,null,"大学モデル",null,null,null,null,null,null,"講堂モデル　）"]
[null,null,null,null,null,null,null,null,"飲食店等",null,null,"（",null,"飲食店モデル　）"]
[null,null,null,null,null,null,null,null,"集会所等",null,null,"（",null,"集会所モデル　）"]
[null,null,null,null,null,null,null,null,"工場等",null,null,"（",null,"工場モデル　）"]
[null,null,"申請の範囲",null,null,null,"・申請する評価の範囲（該当する全て）"]
[null,null,null,null,null,null,null,"一戸建ての住宅"]
[null,null,null,null,null,null,null,"共同住宅等、複合建築物の住戸"]
[null,null,null,null,null,null,null,"非住宅建築物全体・複合建築物の非住宅部分全体"]
[null,null,null,null,null,null,null,"フロア・テナントによる"]
[null,null,null,null,null,null,null,"共同住宅等の住棟、複合建築物の住宅部分全体"]
[null,null,null,null,null,null,null,"複合建築物全体"]
[null,null,null,null,null,null,null,"その他の部分"]
[]
[null,"【参考】申請の対象となる範囲と設計内容説明書の関係"]
[null,"申請の対象となる範囲",null,null,null,null,null,null,null,"住宅用",null,null,null,null,"非住宅用",null,null,null,null,"共用部分用",null,null,null,null,"住棟用"]
[null,"（以下代表的な分類）",null,null,null,null,null,null,null,"【第二面】",null,null,null,null,"【第三面】",null,null,null,null,"【第四面】",null,null,null,null,"【第五面】"]
[null,"一戸建ての住宅",null,null,null,null,null,null,null,null,null,"○",null,null,null,null,"―",null,null,null,null,"―",null,null,null,null,"―"]
[null,"共同住宅等、複合建築物の住戸",null,null,null,null,null,null,null,null,null,"○※1",null,null,null,null,"―",null,null,null,null,"―",null,null,null,null,"―"]
[null,"共同住宅等の住棟、複合建築物の住宅部分全体",null,null,null,null,null,null,null,null,null,"○※1",null,null,null,null,"―",null,null,null,null,"○",null,null,null,null,"○"]
[null,"非住宅建築物全体等、複合建築物の非住宅部分全体",null,null,null,null,null,null,null,null,null,"―",null,null,null,null,"○",null,null,null,null,"―",null,null,null,null,"―"]
[null,"フロア・テナント・建物用途",null,null,null,null,null,null,null,null,null,"―",null,null,null,null,"○※2",null,null,null,null,"―",null,null,null,null,"―"]
[null,"その他の部分",null,null,null,null,null,null,null,"適宜選択"]
[null,"複合建築物全体",null,null,null,null,null,null,null,null,null,"○※1",null,null,null,null,"○",null,null,null,null,"○",null,null,null,null,"○※3"]
[null,"※1･･･住戸ごとに作成する。ただし別の表を用いることも可能。"]
[null,"※2･･･申請単位ごとに作成。ただし別の表を用いることも可能。"]
[null,"※3･･･住宅仕様基準、誘導仕様基準を含む場合は作成不要。"]
[null,"　BELSに関して記載する数値は以下のとおりとします。"]
[null,"　・ＵＡ　小数第二位未満を切り上げた数値を記載してください。"]
[null,"　・ηＡＣ　小数第一位未満を切り上げた数値を記載してください。"]
["　","　・年間熱負荷係数　小数第一位以下を切り上げた数値を記載してください。"]
[null,"　・ＢＰＩ　小数第二位未満を切り上げた数値を記載してください。"]
[null,"　・ＢＥＩ　小数第二位未満を切り上げた数値を記載してください。"]
[null,"　・設計・基準一次エネルギー消費量　小数以下一位未満を切り上げた数値を記載してください。"]
[null,"　・削減率　1未満の端数があるときは、これを切り捨てた数値を記載してください。"]
[null,"　　（一次エネルギー消費削減量とは「基準一次エネルギー消費量　－　設計一次エネルギー消費量」をいいます。）"]

{"sheet":"設内2面","index":14,"n_rows":64,"n_cols":32,"rows_kept":64,"cut":false,"hidden":false,"merged":[[53,28,53,29],[49,5,49,8],[50,5,50,8],[51,5,51,8],[52,5,52,8],[22,0,23,1],[22,5,23,8],[24,0,33,1],[24,5,24,8],[22,2,23,4],[24,2,33,4],[20,30,20,31],[21,5,21,8],[21,9,21,26],[21,27,21,29],[21,30,21,31],[7,0,18,1],[7,2,12,4],[13,2,18,4],[8,12,8,13],[20,0,21,1],[20,2,21,4],[20,5,20,29],[0,0,0,31],[3,0,3,2],[3,15,3,31],[5,0,6,1],[5,2,6,4],[5,5,5,29],[5,30,5,31],[6,5,6,8],[6,9,6,26],[6,27,6,29],[6,30,6,31],[61,0,63,1],[61,2,63,4],[36,11,36,24],[39,11,39,24],[45,11,45,24],[37,5,37,8],[40,5,40,8],[43,5,43,8],[46,5,46,8],[34,2,52,4],[48,11,48,24],[53,0,60,1],[53,5,53,8],[53,13,53,16],[58,2,60,4],[34,0,52,1],[53,2,57,4],[58,5,60,8],[8,21,8,22],[11,12,11,13],[28,14,28,17],[30,14,30,17],[34,5,34,8],[42,11,42,24],[61,5,63,8],[63,13,63,24],[31,14,31,17],[54,5,55,8],[56,5,57,8]]}
["（第二面）　【住宅用】"]
["住宅または、複合建築物の住宅部分"]
[null,"（",null,null,"一戸建て住宅・",null,null,null,null,null,null,null,"共同住宅等、複合建築物の住戸",null,null,null,null,null,null,null,null,null,null,"（",null,"別表に記載）　）"]
["住戸番号",null,null,null,"※共同住宅等の場合以外は記入不要"]
["【外皮に関する事項】"]
["確認\n事項",null,"確認項目",null,null,"設　計　内　容（現　況）　説　明　欄",null,null,null,null,null,null,null,null,null,null,null,null,null,null,null,null,null,null,null,null,null,null,null,null,"設計内容"]
[null,null,null,null,null,"項　　目",null,null,null,"設計内容（現況）",null,null,null,null,null,null,null,null,null,null,null,null,null,null,null,null,null,"記載図書欄",null,null,"確認欄"]
["躯体の外皮性能等",null,"性能基準等",null,null,"外皮平均",null,null,null,"外皮平均熱貫流率（ＵＡ）",null,null,null,null,null,null,null,null,null,null,null,null,null,null,null,null,null,null,"計算書",null,"□","適"]
[null,null,null,null,null,"熱貫流率",null,null,null,"　設計値（",null,null,null,null,"）【W/㎡K】",null,null,null,"　基準値（",null,null,null,null,"）【W/㎡K】",null,null,null,null,"仕様書"]
[null,null,null,null,null,null,null,null,null,null,null,null,null,null,null,null,null,null,null,null,null,null,null,null,null,null,null,null,"平面図"]
[null,null,null,null,null,"外皮平均",null,null,null,"冷房期の平均日射熱取得率の計算値（ηＡＣ）",null,null,null,null,null,null,null,null,null,null,null,null,null,null,null,null,null,null,"立面図"]
[null,null,null,null,null,"日射熱取得率",null,null,null,"　設計値（",null,null,null,null,"）",null,null,null,"　基準値（",null,null,"基準値なし",null,null,"）",null,null,null,"建具表"]
[]
[null,null,"仕様基準",null,null,"基準の選択",null,null,null,null,"仕様基準",null,null,null,null,"誘導仕様基準",null,null,null,null,null,null,null,null,null,null,null,null,"仕様表"]
[null,null,null,null,null,"躯体の断熱",null,null,null,null,"熱貫流率の基準に適合",null,null,null,null,null,null,null,null,null,null,null,null,null,null,null,null,null,"平面図"]
[null,null,null,null,null,"性能等",null,null,null,null,"断熱材の熱抵抗値の基準に適合",null,null,null,null,null,null,null,null,null,null,null,null,null,null,null,null,null,"立面図"]
[null,null,null,null,null,"開口部",null,null,null,null,"開口部の熱貫流率と日射遮蔽対策に適合",null,null,null,null,null,null,null,null,null,null,null,null,null,null,null,null,null,"建具表"]
[null,null,null,null,null,"の断熱",null,null,null,null,"緩和措置あり"]
[null,null,null,null,null,"性能等",null,null,null,null,null,"窓の断熱（2％緩和）",null,null,null,null,null,null,null,"窓の日射（4％緩和）"]
["【一次エネルギー消費量に関する事項】"]
["確認\n事項",null,"確認項目",null,null,"設　計　内　容（現　況）　説　明　欄",null,null,null,null,null,null,null,null,null,null,null,null,null,null,null,null,null,null,null,null,null,null,null,null,"設計内容"]
[null,null,null,null,null,"項　　目",null,null,null,"設計内容（現況）",null,null,null,null,null,null,null,null,null,null,null,null,null,null,null,null,null,"記載図書欄",null,null,"確認欄"]
["基本\n事項",null,null,null,null,"計算対象\n床面積",null,null,null,null,"エネルギー消費性能計算プログラムの出力票による",null,null,null,null,null,null,null,null,null,null,null,null,null,null,null,null,null,"平面図",null,"□","適"]
[null,null,null,null,null,null,null,null,null,null,"仕様基準・誘導仕様基準を採用",null,null,null,null,null,null,null,null,null,null,null,null,null,null,null,null,null,"求積図"]
["一次エネルギー\n消費量",null,null,null,null,"計算結果等",null,null,null,null,"仕様基準・誘導仕様基準に適合",null,null,null,null,null,null,null,null,null,null,null,null,null,null,null,null,null,"計算書"]
[null,null,null,null,null,null,null,null,null,null,null,null,null,null,null,null,null,null,null,null,null,null,null,null,null,null,null,null,"仕様書"]
[null,null,null,null,null,null,null,null,null,null,null,"計算結果の記入"]
[null,null,null,null,null,null,null,null,null,null,"・設計一次エネルギー消費量（その他除く）"]
[null,null,null,null,null,null,null,null,null,null,null,null,null,"（",null,null,null,null,"）","GJ／年"]
[null,null,null,null,null,null,null,null,null,null,"・基準一次エネルギー消費量（その他除く）"]
[null,null,null,null,null,null,null,null,null,null,null,null,null,"（",null,null,null,null,"）","GJ／年"]
[null,null,null,null,null,null,null,null,null,null,"・ＢＥＩ",null,null,"（",null,null,null,null,"）"]
[null,null,null,null,null,null,null,null,null,null,"一次エネルギー消費量に関する仕様基準（住宅部分）"]
[null,null,null,null,null,null,null,null,null,null,"誘導仕様基準（住宅部分）"]
["設備の概要",null,"設備機器に係る概要",null,null,"暖房方式",null,null,null,null,"エネルギー消費性能計算プログラムの出力票による",null,null,null,null,null,null,null,null,null,null,null,null,null,null,null,null,null,"仕上表",null,"□","適"]
[null,null,null,null,null,null,null,null,null,null,"仕様基準・誘導仕様基準に適合",null,null,null,null,null,null,null,null,null,null,null,null,null,null,null,null,null,"建具表"]
[null,null,null,null,null,null,null,null,null,null,"（",null,null,null,null,null,null,null,null,null,null,null,null,null,null,"）　",null,null,"矩計図"]
[null,null,null,null,null,"冷房方式",null,null,null,null,"エネルギー消費性能計算プログラムの出力票による",null,null,null,null,null,null,null,null,null,null,null,null,null,null,null,null,null,"平面図"]
[null,null,null,null,null,null,null,null,null,null,"仕様基準・誘導仕様基準に適合",null,null,null,null,null,null,null,null,null,null,null,null,null,null,null,null,null,"機器表"]
[null,null,null,null,null,null,null,null,null,null,"（",null,null,null,null,null,null,null,null,null,null,null,null,null,null,"）　",null,null,"系統図"]
[null,null,null,null,null,"換気設備",null,null,null,null,"エネルギー消費性能計算プログラムの出力票による"]
[null,null,null,null,null,"方式",null,null,null,null,"仕様基準・誘導仕様基準に適合"]
[null,null,null,null,null,null,null,null,null,null,"（",null,null,null,null,null,null,null,null,null,null,null,null,null,null,"）　"]
[null,null,null,null,null,"給湯設備",null,null,null,null,"エネルギー消費性能計算プログラムの出力票による"]
[null,null,null,null,null,null,null,null,null,null,"仕様基準・誘導仕様基準に適合"]
[null,null,null,null,null,null,null,null,null,null,"（",null,null,null,null,null,null,null,null,null,null,null,null,null,null,"）　"]
[null,null,null,null,null,"照明設備",null,null,null,null,"エネルギー消費性能計算プログラムの出力票による"]
[null,null,null,null,null,null,null,null,null,null,"仕様基準・誘導仕様基準に適合"]
[null,null,null,null,null,null,null,null,null,null,"（",null,null,null,null,null,null,null,null,null,null,null,null,null,null,"）　"]
[null,null,null,null,null,"太陽光発電の",null,null,null,null,"エネルギー消費性能計算プログラムの出力票による"]
[null,null,null,null,null,"使用について"]
[null,null,null,null,null,"ｺｰｼﾞｪﾈﾚｰｼｮﾝ",null,null,null,null,"エネルギー消費性能計算プログラムの出力票による"]
[null,null,null,null,null,"の使用について"]
["「ZEHマーク」、「ZEH-Mマーク」\nに関する事項",null,"「ZEHマーク」、「ZEH-Mマーク」に関する表示",null,null,"外皮基準",null,null,null,"基準値",null,null,"（",null,null,null,null,"）","【W/㎡K】",null,null,null,null,null,null,null,null,null,"計算書",null,"□","適"]
[null,null,null,null,null,"再生可能ｴﾈﾙｷﾞｰ除き",null,null,null,null,"一次エネルギー消費量削減率（省エネのみ）が",null,null,null,null,null,null,null,null,null,null,null,null,null,null,null,null,null,"計算書",null,"□","適"]
[null,null,null,null,null,null,null,null,null,null,"基準を満たしている。"]
[null,null,null,null,null,"再生可能ｴﾈﾙｷﾞｰ加え",null,null,null,null,"一次エネルギー消費量削減率（省エネ等含み）が",null,null,null,null,null,null,null,null,null,null,null,null,null,null,null,null,null,"計算書",null,"□","適"]
[null,null,null,null,null,null,null,null,null,null,"基準を満たしている。"]
[null,null,"※選択した場合のみ",null,null,"外皮基準・一次ｴﾈﾙｷﾞｰ消費量水準",null,null,null,null,"誘導仕様基準に適合（ZEH Oriented又はZEH-M Oriented※1",null,null,null,null,null,null,null,null,null,null,null,null,null,null,null,null,null,"仕様書",null,"□","適"]
[null,null,null,null,null,null,null,null,null,null,"に限る）※1共用部無しの場合に限る",null,null,null,null,null,null,null,null,null,null,null,null,null,null,null,null,null,"機器表"]
[]
[null,null,null,null,null,"省エネ設備の有無・種類",null,null,null,null,"有",null,null,null,"無",null,null,null,null,null,null,null,null,null,null,null,null,null,"仕様書",null,"□","適"]
[null,null,null,null,null,null,null,null,null,null,"太陽光発電設備",null,null,null,null,null,"太陽熱利用設備",null,null,null,null,null,null,null,null,null,null,null,"機器表"]
[null,null,null,null,null,null,null,null,null,null,"その他",null,"（",null,null,null,null,null,null,null,null,null,null,null,null,"）"]

{"sheet":"MAST","index":15,"n_rows":10,"n_cols":11,"rows_kept":10,"cut":false,"hidden":true,"merged":[]}
[]
[null,null,null,"1地域","2地域","3地域","4地域","5地域","6地域","7地域","8地域"]
[null,1,"外皮平均熱貫流率",0.46,0.46,0.56000000000000005,0.75,0.87,0.87,0.87,"（基準なし）"]
[null,2,"冷房期の平均日射熱取得率","（基準なし）","（基準なし）","（基準なし）","（基準なし）",3,2.8,2.7,3.2]
[null,3,"ZEHマーク外皮基準",0.4,0.4,0.5,0.6,0.6,0.6,0.6,"（基準なし）"]
[]
[null,null,"　『ZEH』"," 外皮：省エネ基準 ・ ZEH外皮基準　一次エネ：A≧20　＆　B≧100"]
[null,null,"　NearlyZEH"," 外皮：省エネ基準 ・ ZEH外皮基準　一次エネ：A≧20　＆　75≦B＜100"]
[null,null,"  ZEH oriented"," 外皮：省エネ基準 ・ ZEH外皮基準　一次エネ：A≧20"]
[null,null,"　ゼロエネ相当"," 外皮：省エネ基準 　一次エネ：A≧20　＆　B≧100"]

{"sheet":"掲承1面","index":16,"n_rows":48,"n_cols":28,"rows_kept":48,"cut":false,"hidden":false,"merged":[[27,14,27,27],[35,5,35,13],[30,5,30,13],[29,5,29,13],[28,5,28,13],[35,14,35,27],[30,14,30,27],[28,14,28,27],[29,14,29,27],[44,5,44,13],[44,14,44,27],[44,0,44,4],[43,5,43,13],[36,0,36,4],[38,0,38,4],[43,0,43,4],[38,5,38,13],[38,14,38,27],[39,0,39,4],[39,5,39,13],[39,14,39,27],[40,0,40,4],[40,5,40,13],[40,14,40,27],[41,0,41,4],[47,0,47,4],[47,5,47,13],[47,14,47,27],[45,0,45,4],[45,5,45,13],[45,14,45,27],[46,0,46,4],[46,5,46,13],[46,14,46,27],[27,0,27,4],[27,5,27,13],[28,0,28,4],[29,0,29,4],[30,0,30,4],[2,0,2,27],[26,0,26,27],[20,0,22,27],[16,14,18,25],[12,14,14,25],[24,5,24,26],[4,19,4,20],[4,22,4,23],[4,25,4,26],[6,0,6,27],[43,14,43,27],[37,0,37,4],[31,0,34,4],[37,5,37,13],[37,14,37,27],[32,14,34,27],[35,0,35,4],[36,5,36,13],[36,14,36,27],[42,0,42,4],[42,5,42,13],[42,14,42,27],[31,14,31,27],[31,5,34,13],[41,5,41,13],[41,14,41,27]]}
["（別記様式第27号）"]
[]
["ＢＥＬＳに係る評価物件　掲載承諾書"]
[]
[null,null,null,null,null,null,null,null,null,null,null,null,null,null,null,null,null,null,null,{"$f":"IF(評価申請書1面!$S$12=\"\",\"\",評価申請書1面!$S$12)","v":""},null,"年",{"$f":"IF(評価申請書1面!$V$12=\"\",\"\",評価申請書1面!$V$12)","v":""},null,"月",{"$f":"IF(評価申請書1面!$Y$12=\"\",\"\",評価申請書1面!$Y$12)","v":""},null,"日"]
[]
["（第一面）"]
[]
["一般財団法人 岩手県建築住宅センター"]
[null,null,"理事長　　渡 邊　健 治　様"]
[]
[null,null,null,null,null,null,null,null,null,null,null,null,null,"申請者（代表者）の住所又は主たる事務所の所在地"]
[null,null,null,null,null,null,null,null,null,null,null,null,null,null,{"$f":"IF('2面'!$J$8=\"\",\"\",'2面'!$J$8)","v":""}]
[]
[]
[null,null,null,null,null,null,null,null,null,null,null,null,null,"申請者(代表者）の氏名又は名称"]
[null,null,null,null,null,null,null,null,null,null,null,null,null,null,{"$f":"IF('2面'!$J$6=\"\",\"\",'2面'!$J$6)","v":""}]
[]
[]
[]
["　私は、一般財団法人岩手県建築住宅センター（以下「評価機関」という。）により、BELSに係る評価を受けた下記物件について、一般社団法人住宅性能評価・表示協会（以下「評価協会」という。）の定めるBELS評価業務方法書に従い、評価機関及び評価協会に対し、評価結果等の公表について、下記のとおり承諾します。"]
[]
[]
[]
["建築物の名称　：",null,null,null,null,{"$f":"IF('3面'!$J$4=\"\",\"\",'3面'!$J$4)","v":""}]
[]
["記"]
["ホームページ等への\n公開・非公開の選択",null,null,null,null,"項　目",null,null,null,null,null,null,null,null,"内　容"]
["公開",null,null,null,null,"評価年月日",null,null,null,null,null,null,null,null," 評価書発行年月日"]
["公開",null,null,null,null,"建築物の所在地及び地域区分",null,null,null,null,null,null,null,null," 申請書第三面（都道府県のみ）"]
["公開",null,null,null,null,"建築物の階数,延べ面積,構造",null,null,null,null,null,null,null,null," 申請書第三面"]
["公開",null,null,null,null,"延べ面積",null,null,null,null,null,null,null,null," 申請書第三面"]
[null,null,null,null,null,null,null,null,null,null,null,null,null,null," ※掲載される延べ面積は、一定の範囲に区切って表示\n　します。なお、申請情報の延べ面積を国土交通省等\n　へ提供する場合があります。"]
[]
[]
["公開",null,null,null,null,"申請対象部分の用途",null,null,null,null,null,null,null,null," 申請書第四面ほか"]
["公開",null,null,null,null,"採用した評価手法",null,null,null,null,null,null,null,null," 申請書第四面ほか"]
["公開",null,null,null,null,"再生可能エネルギー利用設備設置の有無及び設置した設備の種類",null,null,null,null,null,null,null,null," 申請書第四面ほか"]
["公開",null,null,null,null,"BEIの値（再エネなし）",null,null,null,null,null,null,null,null," 評価書に表示された値、申請書第四面ほか"]
["公開",null,null,null,null,"BEIの値（再エネあり_自家消費分）",null,null,null,null,null,null,null,null," 評価書に表示された値、申請書第四面ほか"]
["公開",null,null,null,null,"BEIの値（再エネあり_売電分含む）",null,null,null,null,null,null,null,null," 評価書に表示された値、申請書第四面ほか"]
["公開",null,null,null,null,"一次エネルギー消費量\n（設計値・基準値）",null,null,null,null,null,null,null,null," 評価書に表示された一次エネルギー消費量\n （設計値・基準値）"]
["公開",null,null,null,null,"各種判定結果の表示",null,null,null,null,null,null,null,null," 評価書に表示された判定結果（ZEB・ZEH水準、\n 断熱性能、一次エネルギー消費性能、総合判定）"]
["公開",null,null,null,null,"削減率",null,null,null,null,null,null,null,null," 評価書に表示されたエネルギー消費量等の削減率"]
["公開",null,null,null,null,"「ZEBマーク」、「ZEHマーク」又は「ZEH-Mマーク」に関する表示等",null,null,null,null,null,null,null,null," 申請書第四面・参考情報ほか"]
["公開",null,null,null,null,"参考情報の有無",null,null,null,null,null,null,null,null," 申請書第四面"]
["公開",null,null,null,null,"目安光熱費の公表",null,null,null,null,null,null,null,null," 評価書に表示された目安光熱費\n 申請時に目安光熱費の表示を希望されなかった場合は\n 「なし」と表示されます。"]
["公開",null,null,null,null,"二次エネルギー消費量に関する項目",null,null,null,null,null,null,null,null," 評価書に表示された二次エネルギー消費量"]

{"sheet":"掲承2面","index":17,"n_rows":34,"n_cols":31,"rows_kept":34,"cut":false,"hidden":false,"merged":[[0,0,0,27],[3,15,3,27],[1,11,1,14],[27,0,27,27],[26,0,26,27],[8,15,8,27],[7,15,7,27],[16,0,16,6],[15,11,16,14],[15,15,16,27],[3,11,8,14],[9,11,14,14],[18,29,24,29],[18,1,24,26],[4,15,6,27],[13,15,13,27],[14,15,14,27],[9,15,9,27],[10,15,12,27],[6,1,7,6],[12,1,13,6],[33,0,33,5],[28,6,28,27],[29,6,29,27],[31,6,31,27],[32,6,32,27],[33,6,33,27],[28,0,28,5],[29,0,29,5],[31,0,31,5],[32,0,32,5],[30,0,30,5],[30,6,30,27]]}
["（第二面）"]
[null,"公開",null,null,null,null,null,null,"非公開",null,null,"建築物の名称",null,null,null,"申請書第三面ほか"]
[]
[null,"公開(申請書記載全て）",null,null,null,null,null,null,"非公開",null,null,"申請者名",null,null,null,"申請書第二面"]
[null,"公開(氏名のみ)",null,null,null,null,null,null,null,null,null,null,null,null,null,"・申請書の第二面【氏名又は名称】の記載から公開したい内容を選ぶことができます。なお申請書に記載された内容以外は選択できません。\n（複数の場合は、代表となる一つが抽出されます）"]
[null,"公開(名称)"]
[null,"※名称の場合は公開する名称を右記欄に記載"]
[null,null,null,null,null,null,null,null,null,null,null,null,null,null,null,"※公開する名称"]
[]
[null,"公開(申請書記載全て）",null,null,null,null,null,null,"非公開",null,null,"設計者名",null,null,null,"申請書第二面"]
[null,"公開(氏名のみ)",null,null,null,null,null,null,null,null,null,null,null,null,null,"・申請書の第二面【氏名又は名称】の記載から公開したい内容を選ぶことができます。なお申請書に記載された内容以外は選択できません。\n（複数の場合は、代表となる一つが抽出されます）"]
[null,"公開(名称)"]
[null,"※名称の場合は公開する名称を右記欄に記載"]
[null,null,null,null,null,null,null,null,null,null,null,null,null,null,null,"※公開する名称"]
[]
[null,"公開",null,null,null,null,null,null,"非公開",null,null,"アピール\nポイント",null,null,null,"※アピールポイント記入欄に、200文字以内でご記入ください。"]
[]
["※アピールポイント記入欄（非公開の場合は記入不要）",null,null,null,null,null,null,null,null,null,null,null,null,null,null,null,null,null,null,null,null,null,null,null,null,null,null,null,null,"文字数カウント"]
[null,null,null,null,null,null,null,null,null,null,null,null,null,null,null,null,null,null,null,null,null,null,null,null,null,null,null,null,null,{"$f":"LEN(B19)","v":0}]
[]
[]
[null,null,null,null,null,null,null,null,null,null,null,null,null,null,null,null,null,null,null,null,null,null,null,null,null,null,null,null,null,null,"←改行せず入力すると、200字カウントします。"]
[]
[]
[]
[]
["1.公表の内容と公表先について\n＊評価機関及び評価協会は、本承諾書において「公開」と記載されている項目又は「公開」を選択した項目について、「内容」欄に記載された情報に基づき、両機関が発行・作成するホームページや機関誌等において当該評価物件の情報を掲載します。\n\n2.記入上の注意\n＊上記全ての欄に記入の上、提出してください。\n＊「ホームページ等への公開・非公開の選択」の欄に「公開」と記載された項目は、個人や個別の建築物が特定されない情報により公開必須になっている項目です。\n＊「ホームページ等への公開・非公開の選択」の欄に□の表示がある項目については、該当するものに■または☑でチェックしてください。\n\n3.評価協会ホームページ掲載のための注意事項\n　BELS事例紹介ページでは、BELSに係る評価申請書の第二面に記載された申請者・設計者・工事施工者（以下「申請者等」という。）の氏名又は名称部分を自動的に抽出し、評価書の取得した件数等を掲載しております。そのため、同一のものが正しく抽出できるよう、申請者等の氏名又は名称は以下の項目に注意して記載してください。正しく抽出されない場合は、同一申請者等においても異なる申請者等として分類されます。\n(正しく抽出されない例)\n　＊略称の混在　（㈱・（株）は「株式会社」に統一など分類すれば正しく抽出されます）\n　＊全角・半角の使い方\n　＊同一名称の異なる事業者名（一字一句同一なもの）は同じものとして集計されます。\n　　（回避するために、代表者の氏名まで公開情報とするなど対策をしてください。）"]
["（本件に係わる連絡先）"]
["会社名："]
["部署名・役職名："]
["氏名："]
["電話："]
["FAX："]
["Email："]

{"sheet":"変更評価申請書1面","index":18,"n_rows":51,"n_cols":29,"rows_kept":51,"cut":false,"hidden":false,"merged":[[50,0,53,26],[26,1,26,25],[29,13,29,19],[30,12,30,20],[42,0,48,26],[31,12,31,20],[33,2,36,25],[33,28,34,39],[22,1,24,25],[2,0,2,26],[4,0,4,26],[6,18,6,19],[6,21,6,22],[6,24,6,25],[18,26,20,26],[14,26,16,26],[14,14,16,25],[18,14,20,25]]}
["（別記様式第29号）"]
[]
["ＢＥＬＳに係る変更評価申請書"]
[]
["（第一面）"]
[]
[null,null,null,null,null,null,null,null,null,null,null,null,null,null,null,null,null,null,null,null,"年",null,null,"月",null,null,"日"]
[]
[null,"一般財団法人 岩手県建築住宅センター"]
[null,null,null,{"$f":"評価申請書1面!D16&評価申請書1面!L16","v":"理事長　　渡 邊　健 治　様"}]
[]
[null,null,null,null,null,null,null,null,null,null,null,null,null,"申請者の氏名又は名称"]
[null,null,null,null,null,null,null,null,null,null,null,null,null,"（法人にあってはその代表者の氏名）"]
[]
[null,null,null,null,null,null,null,null,null,null,null,null,null,null,{"$f":"IF(入力シート!H10=\"\",\"\",入力シート!H12&CHAR(10)&入力シート!H10)","v":""}]
[]
[]
[]
[null,null,null,null,null,null,null,null,null,null,null,null,null,null,{"$f":"IF(入力シート!H16=\"\",\"\",入力シート!H18&CHAR(10)&入力シート!H16)","v":""}]
[]
[]
[]
[null,"　下記の建築物について、BELSに係る変更評価の申請をします。この申請書及び添付図書に記載の事項は、事実に相違ありません。"]
[]
[]
[]
[null,"記"]
[]
[null,"【計画を変更する建築物の直前の評価】"]
[null,"１．BELS評価書交付番号",null,null,null,null,null,null,null,null,null,null,"第",null,null,null,null,null,null,null,"号"]
[null,"２．BELS評価書交付年月日",null,null,null,null,null,null,null,null,null,null,"年　　月　　日"]
[null,"３．BELS評価書交付者"]
[null,"４．変更の概要"]
[null,null,null,null,null,null,null,null,null,null,null,null,null,null,null,null,null,null,null,null,null,null,null,null,null,null,null,null,"※変更の概要は別紙にまとめて\n　頂いても構いません。"]
[]
[]
[]
[]
["※受付欄",null,null,null,null,null,null,null,null,null,"※料金欄"]
[null,null,null,"年",null,null,"月",null,null,"日"]
["第",null,null,null,null,null,null,null,null,"号"]
["申請受理者印",null,null,null,null,null,null,null,null,null,null,null,null,null,null,null,null,null,null,null,null,null,null,null,null,"円"]
["＜評価機関からのお願い＞\n　BELSに係る評価申請の内容について、個人や個別の建築物が特定されない統計情報として、国土交通省、経済産業省、環境省等の関係省庁及び国立研究開発法人建築研究所等の関係機関に提供することがございますので、あらかじめご了承のほどお願い申し上げます。\n　また、BELS評価書取得物件は、申請書・評価書に記載されている項目について、（一社）住宅性能評価・表示協会ホームページにて、BELS事例紹介として評価結果等の公表をさせていただきます。ただし、個人や個別の建築物が特定される情報については、掲載承諾書にて公開の承諾が得られた場合に限ります。"]
[]
[]
[]
[]
[]
[]
[]
["（注意）　　　　　　　　　　　　　　　　　　　　　　　　　　　　　　　　　　　　　　\n  1. 申請者が法人である場合には、代表者の氏名を併せて記載してください。\n　2. 本様式第一面に加えて別記様式第26号の第二面以降を添付してください。\n  3. 次の変更内容の場合は第三面までの提出とすることができます。第二面の申請者等の概要、第三面の\n　 【1.建築物の名称】、【2.不動産ID】、【3.建築物の所在地】、【9.建築物の新築竣工時期】。"]

{"sheet":"軽微な変更","index":19,"n_rows":54,"n_cols":38,"rows_kept":54,"cut":false,"hidden":false,"merged":[[50,17,50,18],[50,20,50,21],[50,23,50,24],[0,13,0,16],[0,17,0,23],[0,24,0,26],[1,17,4,23],[2,25,2,26],[3,25,4,26],[7,0,7,26],[9,0,9,26],[17,15,19,25],[0,0,4,0],[0,1,0,3],[0,4,0,6],[0,7,0,9],[0,10,0,12],[21,1,21,25],[23,0,23,26],[11,18,11,19],[11,21,11,22],[11,24,11,25],[1,1,4,3],[1,4,4,6],[1,7,4,9],[1,10,4,12],[1,13,2,16],[3,13,4,16],[43,1,47,26],[26,9,26,10],[26,14,26,15],[26,17,26,19],[25,9,25,10],[25,12,25,13],[25,15,25,16],[28,9,28,25],[29,9,30,25],[32,18,34,26],[38,5,38,25],[40,5,40,25]]}
["決裁欄","部　長",null,null,"ﾁｰﾌﾏﾈｰｼﾞｬｰ",null,null,"ﾏﾈｰｼﾞｬｰ",null,null,"担当者",null,null,"公印承認",null,null,null,"決裁年月日"]
[null,null,null,null,null,null,null,null,null,null,null,null,null,null,null,null,null,null,null,null,null,null,null,null,"月",null,"日"]
[null,null,null,null,null,null,null,null,null,null,null,null,null,null,null,null,null,null,null,null,null,null,null,null,"郵","受領印"]
[null,null,null,null,null,null,null,null,null,null,null,null,null,"通数（　）"]
[]
["　□本人　□委任状（窓口に持参した人の確認（□運転免許証等））　□手数料"]
[]
["ＢＥＬＳに係る評価 軽微な変更に係る報告書",null,null,null,null,null,null,null,null,null,null,null,null,null,null,null,null,null,null,null,null,null,null,null,null,null,null,null,null,null,null,null,null,null,null,null,null,"□"]
[]
["（第一面）",null,null,null,null,null,null,null,null,null,null,null,null,null,null,null,null,null,null,null,null,null,null,null,null,null,null,null,null,null,null,null,null,null,null,null,null,"■"]
[]
[null,null,null,null,null,null,null,null,null,null,null,null,null,null,null,null,null,null,null,null,"年",null,null,"月",null,null,"日"]
[null,"一般財団法人 岩手県建築住宅センター"]
[null,null,null,{"$f":"評価申請書1面!D16&評価申請書1面!L16","v":"理事長　　渡 邊　健 治　様"}]
[]
[null,null,null,null,null,null,null,null,null,null,null,null,null,null,"申請者の氏名又は名称"]
[null,null,null,null,null,null,null,null,null,null,null,null,null,null,"（法人にあってはその代表者の氏名）"]
[null,null,null,null,null,null,null,null,null,null,null,null,null,null,null,{"$f":"変更評価申請書1面!O15","v":""}]
[]
[]
[]
[null,"　下記のとおり、ＢＥＬＳ評価書の軽微な変更内容を届け出ます。"]
[]
["記"]
[]
[null,"1.","評価書交付年月日",null,null,null,null,"：",null,null,null,"年",null,null,"月",null,null,"日",null,null,null,null,null,null,null,null,null,"←半角入力"]
[null,"2.","評価書交付番号",null,null,null,null,"：",null,"092",null,"－","00","－","0000",null,"－","00000",null,null,null,null,null,null,null,null,null,"←半角入力"]
[null,"3.","評価書交付機関",null,null,null,null,"：",null,"一般財団法人岩手県建築住宅センター"]
[null,"4.","建築物の名称",null,null,null,null,"：",null,{"$f":"入力シート!H4","v":0}]
[null,"5.","建築物の所在地",null,null,null,null,"：",null,{"$f":"入力シート!H6","v":0}]
[]
[null,"6.","変更等の概要及び理由"]
[null,null,null,"□","代理者",null,null,null,null,"（","□","変更",null,"□","決定",null,"）",null,"※「BELSに係る評価申請書」第二面に、変更箇所のみ記載し、添付してください。"]
[null,null,null,"□","建築主等",null,null,null,null,"（","□","変更",null,"□","決定",null,"）"]
[null,null,null,"□","設計者等",null,null,null,null,"（","□","変更",null,"□","決定",null,"）"]
[null,null,null,"□","工事施工者",null,null,null,null,"（","□","変更",null,"□","決定",null,"）"]
[null,null,null,"□","その他の変更"]
[null,null,null,null,"□","効率が向上する設備機器の変更等",null,null,null,null,null,null,null,null,null,null,null,null,null,null,null,null,null,null,null,null,null,null,"←変更内容は簡潔に記載し、変更内容を確認できる図面や資料等を添付してください。"]
[null,null,null,null,null,"別紙による"]
[null,null,null,null,"□","その他",null,null,null,null,null,null,null,null,null,null,null,null,null,null,null,null,null,null,null,null,null,"　記入しきれない場合は、別紙を利用するか、設計内容説明書に記載してください。"]
[]
[]
["（注意）"]
[null,"①「BELSに係る評価申請書」の第二面～第四面の記載事項の変更、設備機器の変更で効率が向上する等の適合が明らかな変更が生じた場合に報告してください。\n②外皮計算書に係る変更および設備機器を新たに設置する等の根本的な計画の変更の場合は「BELSに係る変更評価申請書」を提出してください。\n③地名地番の変更や申請者名の追加等、再審査を要しない変更により、評価書を再発行する場合は「BELSに係る評価再交付申請書」も併せて提出してください。"]
[]
[]
[]
[]
[null,null,null,null,null,null,null,null,null,null,null,null,null,null,null,null,null,null,null,null,null,null,null,null,null,"上記の届出の件について、受理しました。"]
[]
[null,null,null,null,null,null,null,null,null,null,null,null,null,null,null,null,null,null,null,"年",null,null,"月",null,null,"日"]
[]
[null,null,null,null,null,null,null,null,null,null,null,null,null,null,null,null,null,null,null,null,null,null,null,null,null,"一般財団法人岩手県建築住宅センター"]
[null,null,null,null,null,null,null,null,null,null,null,null,null,null,null,null,null,null,null,null,null,null,null,{"$f":"評価申請書1面!D16","v":"理事長　　渡 邊　健 治"},null,"印"]

{"sheet":"軽微な変更-別（参考書式）","index":20,"n_rows":11,"n_cols":10,"rows_kept":11,"cut":false,"hidden":false,"merged":[[0,0,0,27],[1,0,1,27],[5,1,5,8],[5,9,5,26]]}
["（第一面 別紙：変更の概要）"]
["※参考様式のため、独自にご準備頂いた書面の添付に代えることもできます。※"]
[null,"建築物の名称"]
[null,null,null,"建築物の名称：",null,null,null,null,null,{"$f":"IF('3面'!J4=\"\",\"\",'3面'!J4)","v":""}]
[]
[null,"変更した図書等",null,null,null,null,null,null,null,"変更の概要"]
[]
[]
[]
[]
[null,"　"]

{"sheet":"取下げ届","index":21,"n_rows":38,"n_cols":27,"rows_kept":38,"cut":false,"hidden":false,"merged":[[4,0,4,26],[9,18,9,19],[9,21,9,22],[9,24,9,25],[19,14,21,25],[19,26,21,26],[34,8,34,25],[37,8,38,25],[23,1,25,25],[28,1,28,25],[31,8,31,14]]}
["（別記様式第30号）"]
[]
[]
[]
["取下げ届"]
[]
[]
[]
[]
[null,null,null,null,null,null,null,null,null,null,null,null,null,null,null,null,null,null,null,null,"年",null,null,"月",null,null,"日"]
[]
[]
[null,"一般財団法人 岩手県建築住宅センター"]
[null,null,null,{"$f":"評価申請書1面!D16&評価申請書1面!L16","v":"理事長　　渡 邊　健 治　様"}]
[]
[]
[null,null,null,null,null,null,null,null,null,null,null,null,null,"申請者の氏名又は名称"]
[null,null,null,null,null,null,null,null,null,null,null,null,null,"（法人にあってはその代表者の氏名）"]
[]
[]
[]
[]
[]
[null,"　下記BELSに係る評価申請につきまして、申請を取り下げます。"]
[]
[]
[]
[]
[null,"記"]
[]
[]
[null,"１.申請書提出日　：",null,null,null,null,null,null,"年　　月　　日"]
[]
[]
[null,"２.建築物の名称　："]
[]
[]
[null,"３.建築物の所在地　："]

{"sheet":"再交付","index":22,"n_rows":56,"n_cols":29,"rows_kept":56,"cut":false,"hidden":false,"merged":[[45,0,49,27],[50,0,54,0],[50,1,50,3],[50,4,50,6],[50,7,50,9],[50,10,50,12],[50,13,50,16],[50,17,50,23],[50,24,50,27],[52,26,52,27],[51,13,52,16],[51,17,54,23],[53,13,54,16],[53,26,54,27],[51,1,54,3],[51,4,54,6],[22,1,22,26],[30,9,31,26],[24,0,24,27],[27,9,27,10],[27,14,27,15],[27,17,27,19],[29,9,29,26],[51,7,54,9],[51,10,54,12],[1,0,1,27],[2,0,2,27],[3,19,3,20],[3,22,3,23],[35,9,35,10],[26,9,26,10],[3,25,3,26],[9,14,11,25],[14,14,16,25],[18,20,18,26],[26,12,26,13],[26,15,26,16],[19,20,19,26],[20,20,20,26]]}
[]
["ＢＥＬＳに係る評価 再交付申請書"]
[]
[null,null,null,null,null,null,null,null,null,null,null,null,null,null,null,null,null,null,null,null,null,"年",null,null,"月",null,null,"日"]
[]
[null,"一般財団法人 岩手県建築住宅センター"]
[null,null,null,{"$f":"評価申請書1面!D16&評価申請書1面!L16","v":"理事長　　渡 邊　健 治　様"}]
[]
[null,null,null,null,null,null,null,null,null,null,null,null,null,"申請者（代表者）の住所又は主たる事務所の所在地"]
[]
[]
[]
[null,null,null,null,null,null,null,null,null,null,null,null,null,"申請者(代表者）の氏名又は名称"]
[null,null,null,null,null,null,null,null,null,null,null,null,null,"（法人にあってはその代表者の氏名）"]
[]
[]
[]
[null,null,null,null,null,null,null,null,null,null,null,null,null,"建築主以外の場合"]
[null,null,null,null,null,null,null,null,null,null,null,null,null,null,"建築主の氏名"]
[null,null,null,null,null,null,null,null,null,null,null,null,null,null,"建築主との関係"]
[null,null,null,null,null,null,null,null,null,null,null,null,null,null,"連絡先（電話番号）"]
[]
[null,"　下記の建築物について再交付を申請します。"]
[]
["記"]
[]
[null,"1.","評価書交付年月日",null,null,null,null,"：",null,null,null,"年",null,null,"月",null,null,"日"]
[null,"2.","評価書交付番号",null,null,null,null,"：",null,"092",null,"－","00","－","0000",null,"－","00000",null,null,null,null,null,null,null,null,null,null,"←半角入力"]
[null,"3.","評価書交付機関",null,null,null,null,"：",null,"一般財団法人岩手県建築住宅センター"]
[null,"4.","建築物の名称",null,null,null,null,"：",null,{"$f":"入力シート!H4","v":0}]
[null,"5.","建築物の所在地",null,null,null,null,"：",null,{"$f":"入力シート!H6","v":0}]
[]
[null,"6.","再交付の理由",null,null,null,null,"：",null,null,"滅失",null,null,"汚損",null,null,"破損",null,null,"評価書記載事項の変更"]
[null,null,null,null,null,null,null,null,null,null,"※滅失以外の場合、直前の評価書を添付してください。"]
[null,null,null,null,null,null,null,null,null,null,"※評価書記載事項の変更の場合、第二面を添付してください。"]
[null,"7.","再交付の通数",null,null,null,null,"：",null,null,null,"通"]
[]
["※受付欄",null,null,null,null,null,null,null,null,null,"※料金欄",null,null,null,null,"□","一括",null,"□","振込",null,"□","現金"]
[]
[null,null,null,"年",null,null,"月",null,null,"日",null,null,null,null,null,null,null,null,null,null,null,null,null,null,null,null,"円"]
[]
["第",null,null,null,null,null,null,null,null,"号","※再交付日",null,null,null,null,null,null,"年",null,null,"月",null,null,"日"]
[null,null,null,null,null,null,null,null,null,null,"※再交付の種類　",null,null,null,null,"□","再交付"]
["申請受理者印",null,null,null,null,null,null,null,null,null,null,null,null,null,null,"□","記載事項の変更"]
[]
["（注意）　　　　　　　　　　　　　　　　　　　　　　　　　　　　　　　　　　　　　　\n  ① 申請者が法人である場合には、代表者の氏名を併せて記載してください。\n  ② 申請者名が変更になった場合は、変更後の申請者名を記載してください。\n　③ 建築物の名称及び建築物の所在地に変更がある場合は、変更前のものを記載してください。"]
[]
[]
[]
[]
["決裁欄","局　長",null,null,"室　長",null,null,null,null,null,"担当者",null,null,"公印承認",null,null,null,"決裁年月日",null,null,null,null,null,null,"発送年月日"]
[null,null,null,null,null,null,null,null,null,null,null,null,null,null,null,null,null,null,null,null,null,null,null,null,null,"月",null,"日"]
[null,null,null,null,null,null,null,null,null,null,null,null,null,null,null,null,null,null,null,null,null,null,null,null,"□","郵","受領印"]
[null,null,null,null,null,null,null,null,null,null,null,null,null,"通数（　）"]
[]
["　□本人　□委任状（窓口に持参した人の確認（□運転免許証等））　□手数料"]

{"sheet":"再2面","index":23,"n_rows":39,"n_cols":28,"rows_kept":39,"cut":false,"hidden":false,"merged":[[23,22,23,26],[24,10,24,15],[24,19,24,24],[25,10,25,12],[26,19,26,20],[26,22,26,23],[26,25,26,26],[15,2,15,23],[18,7,18,9],[18,10,19,26],[20,11,20,13],[22,10,22,26],[0,0,0,27],[5,2,5,23],[8,2,8,23],[11,2,12,23],[1,0,1,27]]}
["（第二面：評価書記載事項の変更）"]
["※再交付理由が、滅失・汚損・破損の場合、第二面の添付不要です。"]
["評価書記載事項の変更"]
[]
[null,"申請者の連絡先"]
[]
[]
[null,"申請者の氏名又は名称"]
[]
[]
[null,"建築物の所在地"]
[]
[]
[]
[null,"名称"]
[]
[]
["建築物に関する概要"]
["【１.建築物の所在地】",null,null,null,null,null,null,"岩手県"]
[]
["【２.該当する地域の区分】",null,null,null,null,null,null,null,null,null,"（",{"$f":"IF('3面'!K9=\"\",\"\",'3面'!K9)","v":""},null,null,"）"]
["【３.建築物の用途】",null,null,null,null,null,null,null,null,null,null,"一戸建ての住宅"]
["【４.建築物の名称】"]
["【５.建築物の階数】",null,null,null,null,null,null,null,null,null,"（地上）",null,null,null,"階",null,"（地下）",null,null,null,"階"]
["【６.建築物の構造】",null,null,null,null,null,null,null,null,null,null,null,null,null,null,null,"造　一部",null,null,null,null,null,null,null,null,"造"]
["【７.建築物の延べ面積】",null,null,null,null,null,null,null,null,null,null,null,null,"㎡"]
["【８.建築物の新築の竣工時期（計画中の場合は予定工期）】",null,null,null,null,null,null,null,null,null,null,null,null,null,null,null,null,null,null,null,null,"年",null,null,"月",null,null,"日"]
[null,"建築物に関する基本的事項"]
[null,null,"地階"]
[]
[]
[null,"建築物の新築の竣工時期（計画中の場合は予定工期）"]
[null,null,"平成",null,null,"年",null,"月",null,"日"]
[]
[null,"一次エネルギー消費量基準"]
[]
[null,"外皮性能基準"]
[]
[null,"参考情報"]

{"sheet":"Sheet1","index":24,"n_rows":0,"n_cols":0,"rows_kept":0,"cut":false,"hidden":false,"merged":[]}